{"text_format":"1","workbook":"xlsx","n_sheets":1,"sheets":["Summary by District and PID"],"not_rendered":{"charts":0,"images":0,"macros":1,"external_links":1,"defined_names":42,"comments":1,"pivot_tables":0},"unopened":[],"bounds":{"document_bytes":16777216,"sheet_cells":100000,"rows_first":2000,"rows_last":500,"rows_between":2000,"halvings":0,"cell_chars":16384,"cell_head_chars":4096},"cells_cut":0,"cells_raw":0,"read":"whole","date_system":"1900"}

{"sheet":"Summary by District and PID","index":0,"n_rows":264,"n_cols":464,"rows_kept":264,"cut":false,"hidden":false,"merged":[]}
["District","PID","Award Date","FY - Construction","County - Route -  Section","Project Phase","Major Rehab","Major Bridge","TRAC","Safety","ODOT - Other","Local","Uncommitted /\nUnfunded","Total Estimated Cost",{"$f":"\"Prior to  \"&P1","v":"Prior to  2011"},2011,{"$f":"P1+1","v":2012},2013,2014,2015,2016,2017,2018,2019,{"$f":"\"Beyond  \"& X1","v":"Beyond  2019"},"Comments","2023-10-06",null,null,null,null,null,null,null,null,null,null,null,null,null,null,null,null,null,null,null,null,null,null,null,null,"Major Rehab",1993,1994,1995,1996,1997,1998,1999,2000,2001,2002,2003,2004,2005,2006,2007,2008,2009,2010,2011,2012,2013,2014,2015,2016,2017,2018,2019,2020,2021,2022,2023,2024,2025,2026,2027,2028,2029,2030,2031,2032,2033,2034,2035,2036,2037,2038,2039,2040,2041,2042,2043,2044,2045,2046,2047,2048,2049,2050,"Major Bridge",1993,1994,1995,1996,1997,1998,1999,2000,2001,2002,2003,2004,2005,2006,2007,2008,2009,2010,2011,2012,2013,2014,2015,2016,2017,2018,2019,2020,2021,2022,2023,2024,2025,2026,2027,2028,2029,2030,2031,2032,2033,2034,2035,2036,2037,2038,2039,2040,2041,2042,2043,2044,2045,2046,2047,2048,2049,2050,"TRAC",1993,1994,1995,1996,1997,1998,1999,2000,2001,2002,2003,2004,2005,2006,2007,2008,2009,2010,2011,2012,2013,2014,2015,2016,2017,2018,2019,2020,2021,2022,2023,2024,2025,2026,2027,2028,2029,2030,2031,2032,2033,2034,2035,2036,2037,2038,2039,2040,2041,2042,2043,2044,2045,2046,2047,2048,2049,2050,"Safety",1993,1994,1995,1996,1997,1998,1999,2000,2001,2002,2003,2004,2005,2006,2007,2008,2009,2010,2011,2012,2013,2014,2015,2016,2017,2018,2019,2020,2021,2022,2023,2024,2025,2026,2027,2028,2029,2030,2031,2032,2033,2034,2035,2036,2037,2038,2039,2040,2041,2042,2043,2044,2045,2046,2047,2048,2049,2050,"ODOT Other",1993,1994,1995,1996,1997,1998,1999,2000,2001,2002,2003,2004,2005,2006,2007,2008,2009,2010,2011,2012,2013,2014,2015,2016,2017,2018,2019,2020,2021,2022,2023,2024,2025,2026,2027,2028,2029,2030,2031,2032,2033,2034,2035,2036,2037,2038,2039,2040,2041,2042,2043,2044,2045,2046,2047,2048,2049,2050,"Local",1993,1994,1995,1996,1997,1998,1999,2000,2001,2002,2003,2004,2005,2006,2007,2008,2009,2010,2011,2012,2013,2014,2015,2016,2017,2018,2019,2020,2021,2022,2023,2024,2025,2026,2027,2028,2029,2030,2031,2032,2033,2034,2035,2036,2037,2038,2039,2040,2041,2042,2043,2044,2045,2046,2047,2048,2049,2050,"Blank",1993,1994,1995,1996,1997,1998,1999,2000,2001,2002,2003,2004,2005,2006,2007,2008,2009,2010,2011,2012,2013,2014,2015,2016,2017,2018,2019,2020,2021,2022,2023,2024,2025,2026,2027,2028,2029,2030,2031,2032,2033,2034,2035,2036,2037,2038,2039,2040,2041,2042,2043,2044,2045,2046,2047,2048,2049,2050]
[1,76691,"2013-02-07",2013,"ALL-IR-75-5.53 to 9.59",null,null,null,null,null,null,null,null,null,null,null,null,null,null,null,null,null,null,null,null,{"$f":"HYPERLINK(\"http://maps.google.com/maps?f=q&source=s_q&hl=en&geocode=&q=40.708727,+-84.075047+(SALLIR00075**C  SLM 5.53)+to:40.767383,+-84.074349+(SALLIR00075**C SLM 9.59)&t=m\",\"Google Map\")","v":"Google Map"}]
[null,null,null,null,null,"PE",3.8955739999999999,null,null,null,null,null,null,3.8955739999999999,3.8708879999999999,null,2.4686E-2,null,null,null,null,null,null,null,null,null,null,null,null,null,null,null,null,null,null,null,null,null,null,null,null,null,null,null,null,null,null,null,null,null,null,null,null,null,null,null,null,null,null,null,null,null,null,null,null,null,null,null,2060388,1810500,null,24686]
[null,null,null,null,null,"DD",6.8925237900000003,null,null,null,null,null,null,6.8925237900000003,3.0886957900000001,3.7120709999999999,null,9.1757000000000005E-2,null,null,null,null,null,null,null,null,null,null,null,null,null,null,null,null,null,null,null,null,null,null,null,null,null,null,null,null,null,null,null,null,null,null,null,null,null,null,null,null,null,null,null,null,null,null,643331,700000,1558333,null,17327.79,169704,3712071,null,91757]
[null,null,null,null,null,"RW",13.507763000000001,null,null,null,null,null,null,13.507763000000001,1.4999999999999999E-2,2.6197364100000002,6.7376033299999998,4.1354232600000005,null,null,null,null,null,null,null,null,null,null,null,null,null,null,null,null,null,null,null,null,null,null,null,null,null,null,null,null,null,null,null,null,null,null,null,null,null,null,null,null,null,null,null,null,null,null,null,null,null,null,null,15000,2619736.41,6737603.3300000001,4135423.2600000002]
[null,null,null,null,null,"CO",59.056997680000002,null,null,4.33374521,null,null,null,63.390742889999999,null,2.4E-2,null,63.366742889999998,null,null,null,null,null,null,null,null,null,null,null,null,null,null,null,null,null,null,null,null,null,null,null,null,null,null,null,null,null,null,null,null,null,null,null,null,null,null,null,null,null,null,null,null,null,null,null,null,null,null,null,null,24000,null,59032997.68,null,null,null,null,null,null,null,null,null,null,null,null,null,null,null,null,null,null,null,null,null,null,null,null,null,null,null,null,null,null,null,null,null,null,null,null,null,null,null,null,null,null,null,null,null,null,null,null,null,null,null,null,null,null,null,null,null,null,null,null,null,null,null,null,null,null,null,null,null,null,null,null,null,null,null,null,null,null,null,null,null,null,null,null,null,null,null,null,null,null,null,null,null,null,null,null,null,null,null,null,null,null,null,null,null,null,null,null,null,null,null,null,null,null,null,null,null,null,null,null,null,null,null,null,null,null,null,null,null,null,null,null,null,null,null,null,null,null,null,null,null,null,null,null,null,null,null,null,null,null,null,null,null,null,null,null,null,null,null,null,null,null,null,null,null,null,null,null,null,null,null,null,null,null,null,null,4333745.21]
[null,null,null,null,null,"Total",83.352858470000001,null,null,4.33374521,null,null,null,87.68660367999999,6.9745837899999996,6.3558074099999997,6.7622893299999998,67.593923149999995]
[1,87005,"2016-10-01",2017,"HAN-IR-75-14.09 to 19.24",null,null,null,null,null,null,null,null,null,null,null,null,null,null,null,null,null,null,null,null,{"$f":"HYPERLINK(\"http://maps.google.com/maps?f=q&source=s_q&hl=en&geocode=&q=41.014521,+-83.687194+(SHANIR00075**C  SLM 14.09)+to:41.082298,+-83.659763+(SHANIR00075**C SLM 19.24)&t=m\",\"Google Map\")","v":"Google Map"}]
[null,null,null,null,null,"PE",null,null,5.9050000000000002,null,null,null,null,5.9050000000000002,null,null,0.683894,5.2211059999999998,null,null,null,null,null,null,null,null,null,null,null,null,null,null,null,null,null,null,null,null,null,null,null,null,null,null,null,null,null,null,null,null,null,null,null,null,null,null,null,null,null,null,null,null,null,null,null,null,null,null,null,null,null,null,null,null,null,null,null,null,null,null,null,null,null,null,null,null,null,null,null,null,null,null,null,null,null,null,null,null,null,null,null,null,null,null,null,null,null,null,null,null,null,null,null,null,null,null,null,null,null,null,null,null,null,null,null,null,null,null,null,null,null,null,null,null,null,null,null,null,null,null,null,null,null,null,null,null,null,null,null,null,null,null,null,null,null,null,null,null,null,null,null,null,null,null,null,null,null,null,null,null,null,null,null,null,null,null,null,null,null,null,null,null,null,null,null,null,null,null,null,683894,5221106]
[null,null,null,null,null,"DD",0.273891,null,null,null,null,null,null,0.273891,null,null,null,0.273891,null,null,null,null,null,null,null,null,null,null,null,null,null,null,null,null,null,null,null,null,null,null,null,null,null,null,null,null,null,null,null,null,null,null,null,null,null,null,null,null,null,null,null,null,null,null,null,null,null,null,null,null,null,null,273891]
[null,null,null,null,null,"RW",16.899999999999999,null,8.5000000000000006E-2,null,null,null,null,16.984999999999999,null,null,null,9.9849999999999994,null,null,7,null,null,null,null,null,null,null,null,null,null,null,null,null,null,null,null,null,null,null,null,null,null,null,null,null,null,null,null,null,null,null,null,null,null,null,null,null,null,null,null,null,null,null,null,null,null,null,null,null,null,null,9900000,null,null,7000000,null,null,null,null,null,null,null,null,null,null,null,null,null,null,null,null,null,null,null,null,null,null,null,null,null,null,null,null,null,null,null,null,null,null,null,null,null,null,null,null,null,null,null,null,null,null,null,null,null,null,null,null,null,null,null,null,null,null,null,null,null,null,null,null,null,null,null,null,null,null,null,null,null,null,null,null,null,null,null,null,null,null,null,null,null,null,null,null,null,null,null,null,null,null,null,null,null,null,null,null,null,null,null,null,null,null,null,null,null,null,null,null,null,null,85000]
[null,null,null,null,null,"CO",166.476156,null,0.01,null,null,null,null,166.48615599999999,null,null,null,0.01,null,null,null,166.476156,null,null,null,null,null,null,null,null,null,null,null,null,null,null,null,null,null,null,null,null,null,null,null,null,null,null,null,null,null,null,null,null,null,null,null,null,null,null,null,null,null,null,null,null,null,null,null,null,null,null,null,null,null,null,166476156,null,null,null,null,null,null,null,null,null,null,null,null,null,null,null,null,null,null,null,null,null,null,null,null,null,null,null,null,null,null,null,null,null,null,null,null,null,null,null,null,null,null,null,null,null,null,null,null,null,null,null,null,null,null,null,null,null,null,null,null,null,null,null,null,null,null,null,null,null,null,null,null,null,null,null,null,null,null,null,null,null,null,null,null,null,null,null,null,null,null,null,null,null,null,null,null,null,null,null,null,null,null,null,null,null,null,null,null,null,null,null,null,null,10000]
[null,null,null,null,null,"Total",183.650047,null,6,null,null,null,null,189.650047,null,null,0.683894,15.489996999999999,null,null,7,166.476156]
[1,89029,"2013-11-25",2014,"ALL-IR-75-0.21 to 5.53",null,null,null,null,null,null,null,null,null,null,null,null,null,null,null,null,null,null,null,null,{"$f":"HYPERLINK(\"http://maps.google.com/maps?f=q&source=s_q&hl=en&geocode=&q=40.660552,+-84.13125+(SALLIR00075**C  SLM 0.21)+to:40.708727,+-84.075047+(SALLIR00075**C SLM 5.53)&t=m\",\"Google Map\")","v":"Google Map"}]
[null,null,null,null,null,"RW",6.9258513900000009,null,null,null,null,null,null,6.9258513900000009,null,null,2.8373870000000001,0.57630000000000003,3.5121643900000001,null,null,null,null,null,null,null,null,null,null,null,null,null,null,null,null,null,null,null,null,null,null,null,null,null,null,null,null,null,null,null,null,null,null,null,null,null,null,null,null,null,null,null,null,null,null,null,null,null,null,null,null,2837387,576300,3512164.39]
[null,null,null,null,null,"CO",57.544944000000001,null,null,null,null,null,null,57.544944000000001,null,null,null,null,57.544944000000001,null,null,null,null,null,null,null,null,null,null,null,null,null,null,null,null,null,null,null,null,null,null,null,null,null,null,null,null,null,null,null,null,null,null,null,null,null,null,null,null,null,null,null,null,null,null,null,null,null,null,null,null,null,null,57544944]
[null,null,null,null,null,"Total",64.470795390000006,null,null,null,null,null,null,64.470795390000006,null,null,2.8373870000000001,0.57630000000000003,61.057108390000003]
[1,null,null,null,null,"G. Total",331.47370085999995,null,6,4.33374521,null,null,null,341.80744606999997,6.9745837899999996,6.3558074099999997,10.28357033,83.660220150000015,61.057108390000003,null,7,166.476156]
[2,25521,"2013-10-21",2014,"WOO-IR-75-19.43 to 26.09",null,null,null,null,null,null,null,null,null,null,null,null,null,null,null,null,null,null,null,null,{"$f":"HYPERLINK(\"http://maps.google.com/maps?f=q&source=s_q&hl=en&geocode=&q=41.4437,+-83.621654+(SWOOIR00075**C  SLM 19.43)+to:41.539043,+-83.614297+(SWOOIR00075**C SLM 26.09)&t=m\",\"Google Map\")","v":"Google Map"}]
[null,null,null,null,null,"DD",3.9274999999999997E-2,null,null,null,null,null,null,3.9274999999999997E-2,null,null,null,3.9274999999999997E-2,null,null,null,null,null,null,null,null,null,null,null,null,null,null,null,null,null,null,null,null,null,null,null,null,null,null,null,null,null,null,null,null,null,null,null,null,null,null,null,null,null,null,null,null,null,null,null,null,null,null,null,null,null,null,39275]
[null,null,null,null,null,"CO",46,null,null,null,null,null,7.7,53.7,null,null,null,null,53.7,null,null,null,null,null,null,null,null,null,null,null,null,null,null,null,null,null,null,null,null,null,null,null,null,null,null,null,null,null,null,null,null,null,null,null,null,null,null,null,null,null,null,null,null,null,null,null,null,null,null,null,null,null,null,46000000,null,null,null,null,null,null,null,null,null,null,null,null,null,null,null,null,null,null,null,null,null,null,null,null,null,null,null,null,null,null,null,null,null,null,null,null,null,null,null,null,null,null,null,null,null,null,null,null,null,null,null,null,null,null,null,null,null,null,null,null,null,null,null,null,null,null,null,null,null,null,null,null,null,null,null,null,null,null,null,null,null,null,null,null,null,null,null,null,null,null,null,null,null,null,null,null,null,null,null,null,null,null,null,null,null,null,null,null,null,null,null,null,null,null,null,null,null,null,null,null,null,null,null,null,null,null,null,null,null,null,null,null,null,null,null,null,null,null,null,null,null,null,null,null,null,null,null,null,null,null,null,null,null,null,null,null,null,null,null,null,null,null,null,null,null,null,null,null,null,null,null,null,null,null,null,null,null,null,null,null,null,null,null,null,null,null,null,null,null,null,null,null,null,null,null,null,null,null,null,null,null,null,null,null,null,null,null,null,null,null,null,null,null,null,null,null,null,null,null,null,null,null,null,null,null,null,null,null,null,null,null,null,null,null,null,null,null,null,null,null,null,null,null,null,null,null,null,null,null,null,null,null,null,null,null,null,null,null,null,null,null,null,null,null,null,null,null,null,null,null,null,null,null,null,null,null,null,null,null,null,null,null,null,null,null,null,null,null,null,null,null,null,null,null,null,null,null,null,null,null,null,null,null,null,null,null,null,null,null,null,null,null,null,null,null,null,null,null,null,null,null,null,null,null,null,null,null,null,null,null,null,null,null,null,null,null,null,null,null,null,null,null,null,null,null,null,null,null,null,null,null,null,null,7700000]
[null,null,null,null,null,"Total",46.039275000000004,null,null,null,null,null,7.7,53.739275000000006,null,null,null,3.9274999999999997E-2,53.7]
[2,81147,"2013-02-21",2013,"LUC-IR-75-1.3 to 4.9",null,null,null,null,null,null,null,null,null,null,null,null,null,null,null,null,null,null,null,null,{"$f":"HYPERLINK(\"http://maps.google.com/maps?f=q&source=s_q&hl=en&geocode=&q=41.636548,+-83.543839+(SLUCIR00075**C  SLM 1.3)+to:41.678912,+-83.572114+(SLUCIR00075**C SLM 4.9)&t=m\",\"Google Map\")","v":"Google Map"}]
[null,null,null,null,null,"CO",0.74074499999999999,null,null,null,null,null,null,0.74074499999999999,null,null,null,0.74074499999999999,null,null,null,null,null,null,null,null,null,null,null,null,null,null,null,null,null,null,null,null,null,null,null,null,null,null,null,null,null,null,null,null,null,null,null,null,null,null,null,null,null,null,null,null,null,null,null,null,null,null,null,null,null,null,740745]
[null,null,null,null,null,"Total",0.74074499999999999,null,null,null,null,null,null,0.74074499999999999,null,null,null,0.74074499999999999]
[2,93592,"2015-10-01",2016,"LUC-IR-75-0 to 1.1",null,null,null,null,null,null,null,null,null,null,null,null,null,null,null,null,null,null,null,null,{"$f":"HYPERLINK(\"http://maps.google.com/maps?f=q&source=s_q&hl=en&geocode=&q=41.617902,+-83.541035+(SLUCIR00075**C  SLM 0)+to:41.634128,+-83.54232+(SLUCIR00075**C SLM 1.1)&t=m\",\"Google Map\")","v":"Google Map"}]
[null,null,null,null,null,"PE",2.56,8.7999939999999999,null,null,null,null,null,11.359994,null,null,null,11.359994,null,null,null,null,null,null,null,null,null,null,null,null,null,null,null,null,null,null,null,null,null,null,null,null,null,null,null,null,null,null,null,null,null,null,null,null,null,null,null,null,null,null,null,null,null,null,null,null,null,null,null,null,null,null,2560000,null,null,null,null,null,null,null,null,null,null,null,null,null,null,null,null,null,null,null,null,null,null,null,null,null,null,null,null,null,null,null,null,null,null,null,null,null,null,null,null,null,null,null,null,null,null,null,null,null,null,null,null,null,null,null,null,null,null,8799994]
[null,null,null,null,null,"DD",3.78,null,null,null,null,null,null,3.78,null,null,null,null,3.78,null,null,null,null,null,null,null,null,null,null,null,null,null,null,null,null,null,null,null,null,null,null,null,null,null,null,null,null,null,null,null,null,null,null,null,null,null,null,null,null,null,null,null,null,null,null,null,null,null,null,null,null,null,null,3780000]
[null,null,null,null,null,"RW",2,null,null,null,null,null,null,2,null,null,null,null,2,null,null,null,null,null,null,null,null,null,null,null,null,null,null,null,null,null,null,null,null,null,null,null,null,null,null,null,null,null,null,null,null,null,null,null,null,null,null,null,null,null,null,null,null,null,null,null,null,null,null,null,null,null,null,2000000]
[null,null,null,null,null,"CO",27.8,98.5,null,null,null,null,null,126.3,null,null,null,null,null,null,126.3,null,null,null,null,null,null,null,null,null,null,null,null,null,null,null,null,null,null,null,null,null,null,null,null,null,null,null,null,null,null,null,null,null,null,null,null,null,null,null,null,null,null,null,null,null,null,null,null,null,null,null,null,null,null,27800000,null,null,null,null,null,null,null,null,null,null,null,null,null,null,null,null,null,null,null,null,null,null,null,null,null,null,null,null,null,null,null,null,null,null,null,null,null,null,null,null,null,null,null,null,null,null,null,null,null,null,null,null,null,null,null,null,null,null,98500000]
[null,null,null,null,null,"Total",36.14,107.299994,null,null,null,null,null,143.43999400000001,null,null,null,11.359994,5.7799999999999994,null,126.3]
[2,93594,"2015-10-01",2016,"LUC-IR-75-1.1 to 2.75",null,null,null,null,null,null,null,null,null,null,null,null,null,null,null,null,null,null,null,null,{"$f":"HYPERLINK(\"http://maps.google.com/maps?f=q&source=s_q&hl=en&geocode=&q=41.634128,+-83.54232+(SLUCIR00075**C  SLM 1.1)+to:41.65482,+-83.554639+(SLUCIR00075**C SLM 2.75)&t=m\",\"Google Map\")","v":"Google Map"}]
[null,null,null,null,null,"PE",1,8.3800000000000008,null,null,null,null,null,9.3800000000000008,null,null,null,9.3800000000000008,null,null,null,null,null,null,null,null,null,null,null,null,null,null,null,null,null,null,null,null,null,null,null,null,null,null,null,null,null,null,null,null,null,null,null,null,null,null,null,null,null,null,null,null,null,null,null,null,null,null,null,null,null,null,1000000,null,null,null,null,null,null,null,null,null,null,null,null,null,null,null,null,null,null,null,null,null,null,null,null,null,null,null,null,null,null,null,null,null,null,null,null,null,null,null,null,null,null,null,null,null,null,null,null,null,null,null,null,null,null,null,null,null,null,8380000]
[null,null,null,null,null,"DD",3.13,null,null,null,null,null,null,3.13,null,null,null,null,3.13,null,null,null,null,null,null,null,null,null,null,null,null,null,null,null,null,null,null,null,null,null,null,null,null,null,null,null,null,null,null,null,null,null,null,null,null,null,null,null,null,null,null,null,null,null,null,null,null,null,null,null,null,null,null,3130000]
[null,null,null,null,null,"RW",1,null,null,null,null,null,null,1,null,null,null,null,1,null,null,null,null,null,null,null,null,null,null,null,null,null,null,null,null,null,null,null,null,null,null,null,null,null,null,null,null,null,null,null,null,null,null,null,null,null,null,null,null,null,null,null,null,null,null,null,null,null,null,null,null,null,null,1000000]
[null,null,null,null,null,"CO",41.7,55,null,null,null,null,null,96.7,null,null,null,null,null,null,96.7,null,null,null,null,null,null,null,null,null,null,null,null,null,null,null,null,null,null,null,null,null,null,null,null,null,null,null,null,null,null,null,null,null,null,null,null,null,null,null,null,null,null,null,null,null,null,null,null,null,null,null,null,null,null,41700000,null,null,null,null,null,null,null,null,null,null,null,null,null,null,null,null,null,null,null,null,null,null,null,null,null,null,null,null,null,null,null,null,null,null,null,null,null,null,null,null,null,null,null,null,null,null,null,null,null,null,null,null,null,null,null,null,null,null,55000000]
[null,null,null,null,null,"Total",46.830000000000005,63.38,null,null,null,null,null,110.21000000000001,null,null,null,9.3800000000000008,4.13,null,96.7]
[2,93604,"2014-05-19",2014,"LUC-IR-75-2.75 to 4.52",null,null,null,null,null,null,null,null,null,null,null,null,null,null,null,null,null,null,null,null,{"$f":"HYPERLINK(\"http://maps.google.com/maps?f=q&source=s_q&hl=en&geocode=&q=41.65482,+-83.554639+(SLUCIR00075**C  SLM 2.75)+to:41.673259,+-83.572562+(SLUCIR00075**C SLM 4.52)&t=m\",\"Google Map\")","v":"Google Map"}]
[null,null,null,null,null,"PE",0.09,null,null,null,null,null,null,0.09,null,null,null,0.09,null,null,null,null,null,null,null,null,null,null,null,null,null,null,null,null,null,null,null,null,null,null,null,null,null,null,null,null,null,null,null,null,null,null,null,null,null,null,null,null,null,null,null,null,null,null,null,null,null,null,null,null,null,null,90000]
[null,null,null,null,null,"DD",0.01,null,null,null,null,null,null,0.01,null,null,null,0.01,null,null,null,null,null,null,null,null,null,null,null,null,null,null,null,null,null,null,null,null,null,null,null,null,null,null,null,null,null,null,null,null,null,null,null,null,null,null,null,null,null,null,null,null,null,null,null,null,null,null,null,null,null,null,10000]
[null,null,null,null,null,"RW",0.4,null,null,null,null,null,null,0.4,null,null,null,null,0.4,null,null,null,null,null,null,null,null,null,null,null,null,null,null,null,null,null,null,null,null,null,null,null,null,null,null,null,null,null,null,null,null,null,null,null,null,null,null,null,null,null,null,null,null,null,null,null,null,null,null,null,null,null,null,400000]
[null,null,null,null,null,"CO",19.399999999999999,null,null,null,null,null,null,19.399999999999999,null,null,null,null,19.399999999999999,null,null,null,null,null,null,null,null,null,null,null,null,null,null,null,null,null,null,null,null,null,null,null,null,null,null,null,null,null,null,null,null,null,null,null,null,null,null,null,null,null,null,null,null,null,null,null,null,null,null,null,null,null,null,19400000]
[null,null,null,null,null,"Total",19.899999999999999,null,null,null,null,null,null,19.899999999999999,null,null,null,9.9999999999999992E-2,19.799999999999997]
[2,null,null,null,null,"G. Total",149.65002000000001,170.67999399999999,null,null,null,null,7.7,328.03001399999988,null,null,null,21.620014000000005,83.41,null,223]
[3,77474,"2012-03-15",2012,"MED-IR-76-7.33 to 11.76",null,null,null,null,null,null,null,null,null,null,null,null,null,null,null,null,null,null,null,null,{"$f":"HYPERLINK(\"http://maps.google.com/maps?f=q&source=s_q&hl=en&geocode=&q=41.032666,+-81.763578+(SMEDIR00076**C  SLM 7.33)+to:41.041848,+-81.687687+(SMEDIR00076**C SLM 11.76)&t=m\",\"Google Map\")","v":"Google Map"}]
[null,null,null,null,null,"DD",null,null,null,0.765621,null,null,null,0.765621,null,0.76060499999999998,null,5.0159999999999996E-3,null,null,null,null,null,null,null,null,null,null,null,null,null,null,null,null,null,null,null,null,null,null,null,null,null,null,null,null,null,null,null,null,null,null,null,null,null,null,null,null,null,null,null,null,null,null,null,null,null,null,null,null,null,null,null,null,null,null,null,null,null,null,null,null,null,null,null,null,null,null,null,null,null,null,null,null,null,null,null,null,null,null,null,null,null,null,null,null,null,null,null,null,null,null,null,null,null,null,null,null,null,null,null,null,null,null,null,null,null,null,null,null,null,null,null,null,null,null,null,null,null,null,null,null,null,null,null,null,null,null,null,null,null,null,null,null,null,null,null,null,null,null,null,null,null,null,null,null,null,null,null,null,null,null,null,null,null,null,null,null,null,null,null,null,null,null,null,null,null,null,null,null,null,null,null,null,null,null,null,null,null,null,null,null,null,null,null,null,null,null,null,null,null,null,null,null,null,null,null,null,null,null,null,null,null,null,null,null,null,null,null,null,null,null,null,null,null,null,null,null,null,null,null,null,null,null,null,null,null,760605,null,5016]
[null,null,null,null,null,"CO",10.062495999999999,null,null,7.7306641600000008,null,null,null,17.793160159999999,null,null,17.793160159999999,null,null,null,null,null,null,null,null,null,null,null,null,null,null,null,null,null,null,null,null,null,null,null,null,null,null,null,null,null,null,null,null,null,null,null,null,null,null,null,null,null,null,null,null,null,null,null,null,null,null,null,null,null,null,10062496,null,null,null,null,null,null,null,null,null,null,null,null,null,null,null,null,null,null,null,null,null,null,null,null,null,null,null,null,null,null,null,null,null,null,null,null,null,null,null,null,null,null,null,null,null,null,null,null,null,null,null,null,null,null,null,null,null,null,null,null,null,null,null,null,null,null,null,null,null,null,null,null,null,null,null,null,null,null,null,null,null,null,null,null,null,null,null,null,null,null,null,null,null,null,null,null,null,null,null,null,null,null,null,null,null,null,null,null,null,null,null,null,null,null,null,null,null,null,null,null,null,null,null,null,null,null,null,null,null,null,null,null,null,null,null,null,null,null,null,null,null,null,null,null,null,null,null,null,null,null,null,null,null,null,null,null,null,null,null,null,null,null,null,null,null,null,null,null,null,null,null,null,null,null,null,null,7730664.1600000011]
[null,null,null,null,null,"Total",10.062495999999999,null,null,8.4962851600000011,null,null,null,18.558781159999999,null,0.76060499999999998,17.793160159999999,5.0159999999999996E-3]
[3,93455,"2016-10-01",2017,"RIC-US-30-9.13 to 13.22",null,null,null,null,null,null,null,null,null,null,null,null,null,null,null,null,null,null,null,null,{"$f":"HYPERLINK(\"http://maps.google.com/maps?f=q&source=s_q&hl=en&geocode=&q=40.773604,+-82.565405+(SRICUS00030**C  SLM 9.13)+to:40.779042,+-82.488049+(SRICUS00030**C SLM 13.22)&t=m\",\"Google Map\")","v":"Google Map"}]
[null,null,null,null,null,"PE",3.8250000000000002,null,null,null,null,null,null,3.8250000000000002,null,null,null,3.8250000000000002,null,null,null,null,null,null,null,null,null,null,null,null,null,null,null,null,null,null,null,null,null,null,null,null,null,null,null,null,null,null,null,null,null,null,null,null,null,null,null,null,null,null,null,null,null,null,null,null,null,null,null,null,null,null,3825000]
[null,null,null,null,null,"DD",0.67500000000000004,null,null,null,null,null,null,0.67500000000000004,null,null,null,null,null,0.67500000000000004,null,null,null,null,null,null,null,null,null,null,null,null,null,null,null,null,null,null,null,null,null,null,null,null,null,null,null,null,null,null,null,null,null,null,null,null,null,null,null,null,null,null,null,null,null,null,null,null,null,null,null,null,null,null,675000]
[null,null,null,null,null,"RW",3,null,null,null,null,null,null,3,null,null,null,null,null,3,null,null,null,null,null,null,null,null,null,null,null,null,null,null,null,null,null,null,null,null,null,null,null,null,null,null,null,null,null,null,null,null,null,null,null,null,null,null,null,null,null,null,null,null,null,null,null,null,null,null,null,null,null,null,3000000]
[null,null,null,null,null,"CO",35,null,null,null,null,null,23.196427,58.196427,null,null,null,null,null,null,null,58.196427,null,null,null,null,null,null,null,null,null,null,null,null,null,null,null,null,null,null,null,null,null,null,null,null,null,null,null,null,null,null,null,null,null,null,null,null,null,null,null,null,null,null,null,null,null,null,null,null,null,null,null,null,null,null,35000000,null,null,null,null,null,null,null,null,null,null,null,null,null,null,null,null,null,null,null,null,null,null,null,null,null,null,null,null,null,null,null,null,null,null,null,null,null,null,null,null,null,null,null,null,null,null,null,null,null,null,null,null,null,null,null,null,null,null,null,null,null,null,null,null,null,null,null,null,null,null,null,null,null,null,null,null,null,null,null,null,null,null,null,null,null,null,null,null,null,null,null,null,null,null,null,null,null,null,null,null,null,null,null,null,null,null,null,null,null,null,null,null,null,null,null,null,null,null,null,null,null,null,null,null,null,null,null,null,null,null,null,null,null,null,null,null,null,null,null,null,null,null,null,null,null,null,null,null,null,null,null,null,null,null,null,null,null,null,null,null,null,null,null,null,null,null,null,null,null,null,null,null,null,null,null,null,null,null,null,null,null,null,null,null,null,null,null,null,null,null,null,null,null,null,null,null,null,null,null,null,null,null,null,null,null,null,null,null,null,null,null,null,null,null,null,null,null,null,null,null,null,null,null,null,null,null,null,null,null,null,null,null,null,null,null,null,null,null,null,null,null,null,null,null,null,null,null,null,null,null,null,null,null,null,null,null,null,null,null,null,null,null,null,null,null,null,null,null,null,null,null,null,null,null,null,null,null,null,null,null,null,null,null,null,null,null,null,null,null,null,null,null,null,null,null,null,null,null,null,null,null,null,null,null,null,null,null,null,null,null,null,null,null,null,null,null,null,null,null,null,null,null,null,null,null,null,null,null,null,null,null,null,null,null,null,null,null,null,null,null,null,null,null,null,null,null,null,null,null,null,null,null,null,23196427]
[null,null,null,null,null,"Total",42.5,null,null,null,null,null,23.196427,65.696427,null,null,null,3.8250000000000002,null,3.6749999999999998,null,58.196427]
[3,null,null,null,null,"G. Total",52.562495999999996,null,null,8.4962851600000011,null,null,23.196427,84.255208159999995,null,0.76060499999999998,17.793160159999999,3.8300160000000001,null,3.6749999999999998,null,58.196427]
[4,18710,"2013-04-08",2013,"SUM-IR-271-2.33 to 6.59",null,null,null,null,null,null,null,null,null,null,null,null,null,null,null,null,null,null,null,null,{"$f":"HYPERLINK(\"http://maps.google.com/maps?f=q&source=s_q&hl=en&geocode=&q=41.218746,+-81.647985+(SSUMIR00271**C  SLM 2.33)+to:41.253104,+-81.585514+(SSUMIR00271**C SLM 6.59)&t=m\",\"Google Map\")","v":"Google Map"}]
[null,null,null,null,null,"OT/SPR",7.4999999999999997E-3,null,null,null,null,null,null,7.4999999999999997E-3,null,null,7.4999999999999997E-3,null,null,null,null,null,null,null,null,null,null,null,null,null,null,null,null,null,null,null,null,null,null,null,null,null,null,null,null,null,null,null,null,null,null,null,null,null,null,null,null,null,null,null,null,null,null,null,null,null,null,null,null,null,null,7500]
[null,null,null,null,null,"PE",0.91063799999999995,null,null,null,null,null,null,0.91063799999999995,0.89424599999999999,1.6392E-2,null,null,null,null,null,null,null,null,null,null,null,null,null,null,null,null,null,null,null,null,null,null,null,null,null,null,null,null,null,null,null,null,null,null,null,null,null,null,null,null,null,null,null,null,null,null,null,null,null,894246,null,null,null,null,16392]
[null,null,null,null,null,"DD",2.7578283399999997,null,null,null,null,null,null,2.7578283399999997,2.6277683399999998,null,0.13006000000000001,null,null,null,null,null,null,null,null,null,null,null,null,null,null,null,null,null,null,null,null,null,null,null,null,null,null,null,null,null,null,null,null,null,null,null,null,null,null,null,null,null,null,291424,null,null,null,null,null,14307.61,14625.73,null,null,2307411,null,130060]
[null,null,null,null,null,"CO",49.41,null,null,null,3.6711149999999999,0.128885,null,53.209999999999994,null,null,null,53.21,null,null,null,null,null,null,null,null,null,null,null,null,null,null,null,null,null,null,null,null,null,null,null,null,null,null,null,null,null,null,null,null,null,null,null,null,null,null,null,null,null,null,null,null,null,null,null,null,null,null,null,null,null,null,49410000,null,null,null,null,null,null,null,null,null,null,null,null,null,null,null,null,null,null,null,null,null,null,null,null,null,null,null,null,null,null,null,null,null,null,null,null,null,null,null,null,null,null,null,null,null,null,null,null,null,null,null,null,null,null,null,null,null,null,null,null,null,null,null,null,null,null,null,null,null,null,null,null,null,null,null,null,null,null,null,null,null,null,null,null,null,null,null,null,null,null,null,null,null,null,null,null,null,null,null,null,null,null,null,null,null,null,null,null,null,null,null,null,null,null,null,null,null,null,null,null,null,null,null,null,null,null,null,null,null,null,null,null,null,null,null,null,null,null,null,null,null,null,null,null,null,null,null,null,null,null,null,null,null,null,null,null,null,null,null,null,null,null,null,null,null,null,null,null,null,null,null,null,null,null,null,null,null,null,null,null,null,null,null,null,null,null,null,null,null,null,null,null,null,null,null,null,null,null,null,null,null,null,null,null,null,null,null,null,null,null,null,null,null,null,null,null,null,null,null,null,null,null,null,null,null,null,null,null,null,null,null,null,null,null,null,3671115,null,null,null,null,null,null,null,null,null,null,null,null,null,null,null,null,null,null,null,null,null,null,null,null,null,null,null,null,null,null,null,null,null,null,null,null,null,null,null,null,null,null,null,null,null,null,null,null,null,null,null,null,null,null,null,null,null,null,128885]
[null,null,null,null,null,"Total",53.085966339999999,null,null,null,3.6711149999999999,0.128885,null,56.885966339999996,3.5220143399999997,1.6392E-2,0.13756000000000002,53.21]
[4,25199,"2009-11-12",2010,"ATB-IR-90-14.25 to 19.56",null,null,null,null,null,null,null,null,null,null,null,null,null,null,null,null,null,null,null,null,{"$f":"HYPERLINK(\"http://maps.google.com/maps?f=q&source=s_q&hl=en&geocode=&q=41.828661,+-80.753251+(SATBIR00090**C  SLM 14.25)+to:41.874977,+-80.674251+(SATBIR00090**C SLM 19.56)&t=m\",\"Google Map\")","v":"Google Map"}]
[null,null,null,null,null,"DD",2.1041226999999996,null,null,null,null,null,null,2.1041226999999996,2.1041226999999996,null,null,null,null,null,null,null,null,null,null,null,null,null,null,null,null,null,null,null,null,null,null,null,null,null,null,null,null,null,null,null,null,null,null,null,null,null,null,null,null,null,null,null,null,null,null,null,null,null,1064768,8000,null,974817.04999999993,33697.65,22840]
[null,null,null,null,null,"RW",5.9999999999999995E-4,null,null,null,null,null,null,5.9999999999999995E-4,5.9999999999999995E-4,null,null,null,null,null,null,null,null,null,null,null,null,null,null,null,null,null,null,null,null,null,null,null,null,null,null,null,null,null,null,null,null,null,null,null,null,null,null,null,null,null,null,null,null,null,null,null,null,null,null,null,null,null,600]
[null,null,null,null,null,"CO",34.691762429999997,null,null,null,null,null,null,34.691762429999997,32.285240380000005,1.1029074099999998,1.0644183200000001,0.23919632000000002,null,null,null,null,null,null,null,null,null,null,null,null,null,null,null,null,null,null,null,null,null,null,null,null,null,null,null,null,null,null,null,null,null,null,null,null,null,null,null,null,null,null,null,null,null,null,null,null,null,null,null,32285240.380000003,1102907.4099999999,1064418.32,239196.32]
[null,null,null,null,null,"Total",36.796485129999994,null,null,null,null,null,null,36.796485129999994,34.389963080000001,1.1029074099999998,1.0644183200000001,0.23919632000000002]
[4,25869,"2010-12-09",2011,"ATB-IR-90-22.06 to 28.69",null,null,null,null,null,null,null,null,null,null,null,null,null,null,null,null,null,null,null,null,{"$f":"HYPERLINK(\"http://maps.google.com/maps?f=q&source=s_q&hl=en&geocode=&q=41.894952,+-80.634245+(SATBIR00090**C  SLM 22.06)+to:41.937219,+-80.519399+(SATBIR00090**C SLM 28.69)&t=m\",\"Google Map\")","v":"Google Map"}]
[null,null,null,null,null,"PE",4.5069999999999999E-2,null,null,null,null,null,null,4.5069999999999999E-2,4.5069999999999999E-2,null,null,null,null,null,null,null,null,null,null,null,null,null,null,null,null,null,null,null,null,null,null,null,null,null,null,null,null,null,null,null,null,null,null,null,null,null,null,null,null,null,null,null,null,null,null,null,null,null,null,null,null,null,null,45070]
[null,null,null,null,null,"DD",2.8580745300000001,null,null,null,null,null,null,2.8580745300000001,2.6990220700000003,0.15905245999999998,null,null,null,null,null,null,null,null,null,null,null,null,null,null,null,null,null,null,null,null,null,null,null,null,null,null,null,null,null,null,null,null,null,null,null,null,null,null,null,null,null,null,null,null,null,null,null,null,1579384,6348.07,null,1113290,null,null,159052.46]
[null,null,null,null,null,"RW",1E-3,null,null,null,null,null,null,1E-3,1E-3,null,null,null,null,null,null,null,null,null,null,null,null,null,null,null,null,null,null,null,null,null,null,null,null,null,null,null,null,null,null,null,null,null,null,null,null,null,null,null,null,null,null,null,null,null,null,null,null,null,null,null,null,null,null,1000]
[null,null,null,null,null,"CO",43.288515770000004,null,null,null,null,null,null,43.288515770000004,null,41.466504890000003,0.75110978000000006,1.0709011000000002,null,null,null,null,null,null,null,null,null,null,null,null,null,null,null,null,null,null,null,null,null,null,null,null,null,null,null,null,null,null,null,null,null,null,null,null,null,null,null,null,null,null,null,null,null,null,null,null,null,null,null,null,41466504.890000001,751109.78,1070901.1000000001]
[null,null,null,null,null,"Total",46.1926603,null,null,null,null,null,null,46.1926603,2.7450920700000001,41.625557350000001,0.75110978000000006,1.0709011000000002]
[4,76351,"2012-02-02",2012,"SUM-IR-277-0 to 4.14",null,null,null,null,null,null,null,null,null,null,null,null,null,null,null,null,null,null,null,null,{"$f":"HYPERLINK(\"http://maps.google.com/maps?f=q&source=s_q&hl=en&geocode=&q=41.035601,+-81.568968+(SSUMIR00277**C  SLM 0)+to:41.024334,+-81.500057+(SSUMIR00277**C SLM 4.14)&t=m\",\"Google Map\")","v":"Google Map"}]
[null,null,null,null,null,"DD",2.8049000000000001E-2,null,null,null,null,null,null,2.8049000000000001E-2,null,1.3939999999999999E-2,null,1.4109E-2,null,null,null,null,null,null,null,null,null,null,null,null,null,null,null,null,null,null,null,null,null,null,null,null,null,null,null,null,null,null,null,null,null,null,null,null,null,null,null,null,null,null,null,null,null,null,null,null,null,null,null,null,13940,null,14109]
[null,null,null,null,null,"CO",13.352976849999999,null,null,null,5.0000000000000001E-3,null,null,13.35797685,null,null,13.352976849999999,5.0000000000000001E-3,null,null,null,null,null,null,null,null,null,null,null,null,null,null,null,null,null,null,null,null,null,null,null,null,null,null,null,null,null,null,null,null,null,null,null,null,null,null,null,null,null,null,null,null,null,null,null,null,null,null,null,null,null,13352976.85,null,null,null,null,null,null,null,null,null,null,null,null,null,null,null,null,null,null,null,null,null,null,null,null,null,null,null,null,null,null,null,null,null,null,null,null,null,null,null,null,null,null,null,null,null,null,null,null,null,null,null,null,null,null,null,null,null,null,null,null,null,null,null,null,null,null,null,null,null,null,null,null,null,null,null,null,null,null,null,null,null,null,null,null,null,null,null,null,null,null,null,null,null,null,null,null,null,null,null,null,null,null,null,null,null,null,null,null,null,null,null,null,null,null,null,null,null,null,null,null,null,null,null,null,null,null,null,null,null,null,null,null,null,null,null,null,null,null,null,null,null,null,null,null,null,null,null,null,null,null,null,null,null,null,null,null,null,null,null,null,null,null,null,null,null,null,null,null,null,null,null,null,null,null,null,null,null,null,null,null,null,null,null,null,null,null,null,null,null,null,null,null,null,null,null,null,null,null,null,null,null,null,null,null,null,null,null,null,null,null,null,null,null,null,null,null,null,null,null,null,null,null,null,null,null,null,null,null,null,null,null,null,null,null,null,null,5000]
[null,null,null,null,null,"Total",13.381025849999999,null,null,null,5.0000000000000001E-3,null,null,13.386025849999999,null,1.3939999999999999E-2,13.352976849999999,1.9109000000000001E-2]
[4,76747,"2012-12-20",2013,"ATB-IR-90-7.56 to 14.25",null,null,null,null,null,null,null,null,null,null,null,null,null,null,null,null,null,null,null,null,{"$f":"HYPERLINK(\"http://maps.google.com/maps?f=q&source=s_q&hl=en&geocode=&q=41.783077,+-80.861489+(SATBIR00090**C  SLM 7.56)+to:41.828661,+-80.753251+(SATBIR00090**C SLM 14.25)&t=m\",\"Google Map\")","v":"Google Map"}]
[null,null,null,null,null,"DD",2.592597,null,null,2.8169E-2,null,null,null,2.6207660000000002,2.592597,null,2.8169E-2,null,null,null,null,null,null,null,null,null,null,null,null,null,null,null,null,null,null,null,null,null,null,null,null,null,null,null,null,null,null,null,null,null,null,null,null,null,null,null,null,null,null,null,null,null,null,null,null,null,null,815551,null,1777046,null,null,null,null,null,null,null,null,null,null,null,null,null,null,null,null,null,null,null,null,null,null,null,null,null,null,null,null,null,null,null,null,null,null,null,null,null,null,null,null,null,null,null,null,null,null,null,null,null,null,null,null,null,null,null,null,null,null,null,null,null,null,null,null,null,null,null,null,null,null,null,null,null,null,null,null,null,null,null,null,null,null,null,null,null,null,null,null,null,null,null,null,null,null,null,null,null,null,null,null,null,null,null,null,null,null,null,null,null,null,null,null,null,null,null,null,null,null,null,null,null,null,null,null,null,null,null,null,null,null,null,null,null,null,null,null,null,null,null,null,null,null,null,null,null,null,null,null,null,null,null,null,null,null,null,null,null,null,null,null,null,null,null,null,null,null,null,null,null,null,null,null,null,null,null,null,null,null,28169]
[null,null,null,null,null,"RW",null,null,null,2.545E-2,null,null,null,2.545E-2,null,null,2.545E-2,null,null,null,null,null,null,null,null,null,null,null,null,null,null,null,null,null,null,null,null,null,null,null,null,null,null,null,null,null,null,null,null,null,null,null,null,null,null,null,null,null,null,null,null,null,null,null,null,null,null,null,null,null,null,null,null,null,null,null,null,null,null,null,null,null,null,null,null,null,null,null,null,null,null,null,null,null,null,null,null,null,null,null,null,null,null,null,null,null,null,null,null,null,null,null,null,null,null,null,null,null,null,null,null,null,null,null,null,null,null,null,null,null,null,null,null,null,null,null,null,null,null,null,null,null,null,null,null,null,null,null,null,null,null,null,null,null,null,null,null,null,null,null,null,null,null,null,null,null,null,null,null,null,null,null,null,null,null,null,null,null,null,null,null,null,null,null,null,null,null,null,null,null,null,null,null,null,null,null,null,null,null,null,null,null,null,null,null,null,null,null,null,null,null,null,null,null,null,null,null,null,null,null,null,null,null,null,null,null,null,null,null,null,null,null,null,null,null,null,null,null,null,null,null,null,null,null,null,null,null,null,25450]
[null,null,null,null,null,"CO",58.006400999999997,null,null,10.00494217,null,null,null,68.011343170000004,null,null,null,68.011343170000004,null,null,null,null,null,null,null,null,null,null,null,null,null,null,null,null,null,null,null,null,null,null,null,null,null,null,null,null,null,null,null,null,null,null,null,null,null,null,null,null,null,null,null,null,null,null,null,null,null,null,null,null,null,null,58006401,null,null,null,null,null,null,null,null,null,null,null,null,null,null,null,null,null,null,null,null,null,null,null,null,null,null,null,null,null,null,null,null,null,null,null,null,null,null,null,null,null,null,null,null,null,null,null,null,null,null,null,null,null,null,null,null,null,null,null,null,null,null,null,null,null,null,null,null,null,null,null,null,null,null,null,null,null,null,null,null,null,null,null,null,null,null,null,null,null,null,null,null,null,null,null,null,null,null,null,null,null,null,null,null,null,null,null,null,null,null,null,null,null,null,null,null,null,null,null,null,null,null,null,null,null,null,null,null,null,null,null,null,null,null,null,null,null,null,null,null,null,null,null,null,null,null,null,null,null,null,null,null,null,null,null,null,null,null,null,null,null,null,null,null,null,null,null,null,null,null,null,null,null,null,null,null,10004942.17]
[null,null,null,null,null,"Total",60.598997999999995,null,null,10.058561169999999,null,null,null,70.657559169999999,2.592597,null,5.3619E-2,68.011343170000004]
[4,93501,"2015-10-01",2016,"SUM-IR-76-0 to 5.8",null,null,null,null,null,null,null,null,null,null,null,null,null,null,null,null,null,null,null,null,{"$f":"HYPERLINK(\"http://maps.google.com/maps?f=q&source=s_q&hl=en&geocode=&q=41.041848,+-81.687687+(SSUMIR00076**C  SLM 0)+to:41.035675,+-81.578182+(SSUMIR00076**C SLM 5.8)&t=m\",\"Google Map\")","v":"Google Map"}]
[null,null,null,null,null,"PE",0.71501000000000003,null,null,null,null,null,null,0.71501000000000003,null,null,null,0.25,0.46500999999999998,null,null,null,null,null,null,null,null,null,null,null,null,null,null,null,null,null,null,null,null,null,null,null,null,null,null,null,null,null,null,null,null,null,null,null,null,null,null,null,null,null,null,null,null,null,null,null,null,null,null,null,null,null,250000,465010]
[null,null,null,null,null,"DD",0.28499000000000002,null,null,null,null,null,null,0.28499000000000002,null,null,null,0.28499000000000002,null,null,null,null,null,null,null,null,null,null,null,null,null,null,null,null,null,null,null,null,null,null,null,null,null,null,null,null,null,null,null,null,null,null,null,null,null,null,null,null,null,null,null,null,null,null,null,null,null,null,null,null,null,null,284990]
[null,null,null,null,null,"CO",132.30000000000001,null,null,null,null,null,null,132.30000000000001,null,null,null,null,null,null,132.30000000000001,null,null,null,null,null,null,null,null,null,null,null,null,null,null,null,null,null,null,null,null,null,null,null,null,null,null,null,null,null,null,null,null,null,null,null,null,null,null,null,null,null,null,null,null,null,null,null,null,null,null,null,null,null,null,132300000]
[null,null,null,null,null,"Total",133.30000000000001,null,null,null,null,null,null,133.30000000000001,null,null,null,0.53499000000000008,0.46500999999999998,null,132.30000000000001]
[4,null,null,null,null,"G. Total",343.35513562,null,null,10.058561169999999,3.6761149999999998,0.128885,null,357.21869679000002,43.249666490000003,42.758796760000003,15.359683949999999,123.08553959,0.46500999999999998,null,132.30000000000001]
[6,25594,"2015-04-01",2015,"FRA-IR-70-5.27 to 6.9",null,null,null,null,null,null,null,null,null,null,null,null,null,null,null,null,null,null,null,null,{"$f":"HYPERLINK(\"http://maps.google.com/maps?f=q&source=s_q&hl=en&geocode=&q=39.977222,+-83.150445+(SFRAIR00070**C  SLM 5.27)+to:39.976485,+-83.119047+(SFRAIR00070**C SLM 6.9)&t=m\",\"Google Map\")","v":"Google Map"}]
[null,null,null,null,null,"PE",1.03,null,null,null,null,null,null,1.03,null,null,null,0.664744,0.36525600000000003,null,null,null,null,null,null,null,null,null,null,null,null,null,null,null,null,null,null,null,null,null,null,null,null,null,null,null,null,null,null,null,null,null,null,null,null,null,null,null,null,null,null,null,null,null,null,null,null,null,null,null,null,null,664744,365256]
[null,null,null,null,null,"DD",0.323156,null,null,null,null,null,null,0.323156,null,null,null,2.3156E-2,0.3,null,null,null,null,null,null,null,null,null,null,null,null,null,null,null,null,null,null,null,null,null,null,null,null,null,null,null,null,null,null,null,null,null,null,null,null,null,null,null,null,null,null,null,null,null,null,null,null,null,null,null,null,null,23156,300000]
[null,null,null,null,null,"CO",19.510750000000002,null,null,null,1.7,null,null,21.210750000000001,null,null,null,1.0749999999999999E-2,null,21.2,null,null,null,null,null,null,null,null,null,null,null,null,null,null,null,null,null,null,null,null,null,null,null,null,null,null,null,null,null,null,null,null,null,null,null,null,null,null,null,null,null,null,null,null,null,null,null,null,null,null,null,null,10750,null,19500000,null,null,null,null,null,null,null,null,null,null,null,null,null,null,null,null,null,null,null,null,null,null,null,null,null,null,null,null,null,null,null,null,null,null,null,null,null,null,null,null,null,null,null,null,null,null,null,null,null,null,null,null,null,null,null,null,null,null,null,null,null,null,null,null,null,null,null,null,null,null,null,null,null,null,null,null,null,null,null,null,null,null,null,null,null,null,null,null,null,null,null,null,null,null,null,null,null,null,null,null,null,null,null,null,null,null,null,null,null,null,null,null,null,null,null,null,null,null,null,null,null,null,null,null,null,null,null,null,null,null,null,null,null,null,null,null,null,null,null,null,null,null,null,null,null,null,null,null,null,null,null,null,null,null,null,null,null,null,null,null,null,null,null,null,null,null,null,null,null,null,null,null,null,null,null,null,null,null,null,null,null,null,null,null,null,null,null,null,null,null,null,null,null,null,null,null,null,null,null,null,null,null,null,null,null,null,null,null,null,null,null,null,null,null,null,null,null,null,null,null,null,null,null,null,null,null,null,null,null,null,null,null,null,null,null,1700000]
[null,null,null,null,null,"Total",20.863906,null,null,null,1.7,null,null,22.563905999999999,null,null,null,0.69864999999999999,0.66525600000000007,21.2]
[6,76191,"2011-07-07",2010,"FRA-IR-270-2.6 to 9.62",null,null,null,null,null,null,null,null,null,null,null,null,null,null,null,null,null,null,null,null,{"$f":"HYPERLINK(\"http://maps.google.com/maps?f=q&source=s_q&hl=en&geocode=&q=39.905453,+-83.083898+(SFRAIR00270**C  SLM 2.6)+to:39.989818,+-83.118618+(SFRAIR00270**C SLM 9.62)&t=m\",\"Google Map\")","v":"Google Map"}]
[null,null,null,null,null,"DD",5.0087420900000001,null,null,null,null,null,null,5.0087420900000001,4.8341435400000003,0.17459854999999999,null,null,null,null,null,null,null,null,null,null,null,null,null,null,null,null,null,null,null,null,null,null,null,null,null,null,null,null,null,null,null,null,null,null,null,null,null,null,null,null,null,null,null,null,null,null,null,848402,2837552.1,18685.439999999999,750067,0,335937,43500,174598.55]
[null,null,null,null,null,"RW",0.19222871999999999,null,null,null,null,null,null,0.19222871999999999,null,0.17238998,8.1387400000000002E-3,1.17E-2,null,null,null,null,null,null,null,null,null,null,null,null,null,null,null,null,null,null,null,null,null,null,null,null,null,null,null,null,null,null,null,null,null,null,null,null,null,null,null,null,null,null,null,null,null,null,null,null,null,null,null,null,172389.98,8138.74,11700]
[null,null,null,null,null,"CO",82.918972599999989,null,null,null,null,null,null,82.918972599999989,0.54515000000000002,1.2E-2,81.639902599999999,0.72192000000000001,null,null,null,null,null,null,null,null,null,null,null,null,null,null,null,null,null,null,null,null,null,null,null,null,null,null,null,null,null,null,null,null,null,null,null,null,null,null,null,null,null,null,null,null,null,null,null,null,null,null,null,545150,12000,81639902.599999994,721920]
[null,null,null,null,null,"Total",88.119943409999991,null,null,null,null,null,null,88.119943409999991,5.3792935400000008,0.35898852999999997,81.648041340000006,0.73362000000000005]
[6,76469,"2015-07-01",2016,"FRA-IR-270-9.62 to 17.1",null,null,null,null,null,null,null,null,null,null,null,null,null,null,null,null,null,null,null,null,{"$f":"HYPERLINK(\"http://maps.google.com/maps?f=q&source=s_q&hl=en&geocode=&q=39.989818,+-83.118618+(SFRAIR00270**C  SLM 9.62)+to:40.096512,+-83.13619+(SFRAIR00270**C SLM 17.1)&t=m\",\"Google Map\")","v":"Google Map"}]
[null,null,null,null,null,"PE",2.7,null,null,null,null,null,null,2.7,null,null,null,1,1.7,null,null,null,null,null,null,null,null,null,null,null,null,null,null,null,null,null,null,null,null,null,null,null,null,null,null,null,null,null,null,null,null,null,null,null,null,null,null,null,null,null,null,null,null,null,null,null,null,null,null,null,null,null,1000000,1700000]
[null,null,null,null,null,"DD",1.3,null,null,null,null,null,null,1.3,null,null,null,null,1.3,null,null,null,null,null,null,null,null,null,null,null,null,null,null,null,null,null,null,null,null,null,null,null,null,null,null,null,null,null,null,null,null,null,null,null,null,null,null,null,null,null,null,null,null,null,null,null,null,null,null,null,null,null,null,1300000]
[null,null,null,null,null,"CO",36.5,null,null,null,7,null,null,43.5,null,null,null,null,null,null,43.5,null,null,null,null,null,null,null,null,null,null,null,null,null,null,null,null,null,null,null,null,null,null,null,null,null,null,null,null,null,null,null,null,null,null,null,null,null,null,null,null,null,null,null,null,null,null,null,null,null,null,null,null,null,null,36500000,null,null,null,null,null,null,null,null,null,null,null,null,null,null,null,null,null,null,null,null,null,null,null,null,null,null,null,null,null,null,null,null,null,null,null,null,null,null,null,null,null,null,null,null,null,null,null,null,null,null,null,null,null,null,null,null,null,null,null,null,null,null,null,null,null,null,null,null,null,null,null,null,null,null,null,null,null,null,null,null,null,null,null,null,null,null,null,null,null,null,null,null,null,null,null,null,null,null,null,null,null,null,null,null,null,null,null,null,null,null,null,null,null,null,null,null,null,null,null,null,null,null,null,null,null,null,null,null,null,null,null,null,null,null,null,null,null,null,null,null,null,null,null,null,null,null,null,null,null,null,null,null,null,null,null,null,null,null,null,null,null,null,null,null,null,null,null,null,null,null,null,null,null,null,null,null,null,null,null,null,null,null,null,null,null,null,null,null,null,null,null,null,null,null,null,null,null,null,null,null,null,null,null,null,null,null,null,null,null,null,null,null,null,null,null,null,null,null,null,null,null,null,null,null,null,null,null,null,null,null,null,null,null,null,null,7000000]
[null,null,null,null,null,"Total",40.5,null,null,null,7,null,null,47.5,null,null,null,1,3,null,43.5]
[6,84868,"2015-04-01",2015,"FRA-IR-71-5.29 to 9.78",null,null,null,null,null,null,null,null,null,null,null,null,null,null,null,null,null,null,null,null,{"$f":"HYPERLINK(\"http://maps.google.com/maps?f=q&source=s_q&hl=en&geocode=&q=39.833474,+-83.101371+(SFRAIR00071**C  SLM 5.29)+to:39.881679,+-83.047519+(SFRAIR00071**C SLM 9.78)&t=m\",\"Google Map\")","v":"Google Map"}]
[null,null,null,null,null,"PE",1.3,null,null,null,null,null,null,1.3,null,null,null,0.33871600000000002,0.96128400000000003,null,null,null,null,null,null,null,null,null,null,null,null,null,null,null,null,null,null,null,null,null,null,null,null,null,null,null,null,null,null,null,null,null,null,null,null,null,null,null,null,null,null,null,null,null,null,null,null,null,null,null,null,null,338716,961284]
[null,null,null,null,null,"DD",0.43007299999999998,null,null,null,null,null,null,0.43007299999999998,null,null,null,0.13007299999999999,0.3,null,null,null,null,null,null,null,null,null,null,null,null,null,null,null,null,null,null,null,null,null,null,null,null,null,null,null,null,null,null,null,null,null,null,null,null,null,null,null,null,null,null,null,null,null,null,null,null,null,null,null,null,null,130073,300000]
[null,null,null,null,null,"CO",19,null,null,null,null,null,null,19,null,null,null,null,null,19,null,null,null,null,null,null,null,null,null,null,null,null,null,null,null,null,null,null,null,null,null,null,null,null,null,null,null,null,null,null,null,null,null,null,null,null,null,null,null,null,null,null,null,null,null,null,null,null,null,null,null,null,null,null,19000000]
[null,null,null,null,null,"Total",20.730073000000001,null,null,null,null,null,null,20.730073000000001,null,null,null,0.46878900000000001,1.2612840000000001,19]
[6,86067,"2014-07-01",2015,"FRA-IR-270-36.94 to 40.45",null,null,null,null,null,null,null,null,null,null,null,null,null,null,null,null,null,null,null,null,{"$f":"HYPERLINK(\"http://maps.google.com/maps?f=q&source=s_q&hl=en&geocode=&q=40.006829,+-82.875185+(SFRAIR00270**C  SLM 36.94)+to:39.967145,+-82.84362+(SFRAIR00270**C SLM 40.45)&t=m\",\"Google Map\")","v":"Google Map"}]
[null,null,null,null,null,"OT/SPR",1.6781000000000001E-2,null,null,null,null,null,null,1.6781000000000001E-2,null,1.6781000000000001E-2,null,null,null,null,null,null,null,null,null,null,null,null,null,null,null,null,null,null,null,null,null,null,null,null,null,null,null,null,null,null,null,null,null,null,null,null,null,null,null,null,null,null,null,null,null,null,null,null,null,null,null,null,null,null,16781]
[null,null,null,null,null,"PE",3.6889108199999998,null,null,null,null,null,null,3.6889108199999998,1.4935819999999999E-2,0.98121999999999998,1.189794,1.502961,null,null,null,null,null,null,null,null,null,null,null,null,null,null,null,null,null,null,null,null,null,null,null,null,null,null,null,null,null,null,null,null,null,null,null,null,null,null,null,null,null,null,null,null,null,null,null,null,null,null,null,14935.82,981220,1189794,1502961]
[null,null,null,null,null,"DD",0.51744699999999999,null,null,null,null,null,null,0.51744699999999999,8.7279999999999996E-2,null,null,0.43016700000000002,null,null,null,null,null,null,null,null,null,null,null,null,null,null,null,null,null,null,null,null,null,null,null,null,null,null,null,null,null,null,null,null,null,null,null,null,null,null,null,null,null,null,null,null,null,null,null,null,null,null,null,87280,null,null,430167]
[null,null,null,null,null,"CO",62.133000000000003,null,null,null,null,null,null,62.133000000000003,null,null,null,null,null,62.133000000000003,null,null,null,null,null,null,null,null,null,null,null,null,null,null,null,null,null,null,null,null,null,null,null,null,null,null,null,null,null,null,null,null,null,null,null,null,null,null,null,null,null,null,null,null,null,null,null,null,null,null,null,null,null,null,62133000]
[null,null,null,null,null,"Total",66.356138819999998,null,null,null,null,null,null,66.356138819999998,0.10221582,0.99800100000000003,1.189794,1.933128,null,62.133000000000003]
[6,86916,"2011-09-29",2012,"MRW-IR-71-12.19 to 19.54",null,null,null,null,null,null,null,null,null,null,null,null,null,null,null,null,null,null,null,null,{"$f":"HYPERLINK(\"http://maps.google.com/maps?f=q&source=s_q&hl=en&geocode=&q=40.490265,+-82.727736+(SMRWIR00071**C  SLM 12.19)+to:40.56501,+-82.629913+(SMRWIR00071**C SLM 19.54)&t=m\",\"Google Map\")","v":"Google Map"}]
[null,null,null,null,null,"DD",1.6294616000000002,null,null,null,null,null,null,1.6294616000000002,4.2244999999999998E-2,5.7239999999999999E-2,1.5299766000000001,null,null,null,null,null,null,null,null,null,null,null,null,null,null,null,null,null,null,null,null,null,null,null,null,null,null,null,null,null,null,null,null,null,null,null,null,null,null,null,null,null,null,null,null,null,null,null,null,null,null,null,null,42245,57240,1529976.6]
[null,null,null,null,null,"CO",39.494284910000005,null,null,null,null,null,null,39.494284910000005,null,null,39.494284910000005,null,null,null,null,null,null,null,null,null,null,null,null,null,null,null,null,null,null,null,null,null,null,null,null,null,null,null,null,null,null,null,null,null,null,null,null,null,null,null,null,null,null,null,null,null,null,null,null,null,null,null,null,null,null,39494284.910000004]
[null,null,null,null,null,"Total",41.123746510000004,null,null,null,null,null,null,41.123746510000004,4.2244999999999998E-2,5.7239999999999999E-2,41.024261510000002]
[6,86920,"2013-02-21",2013,"MRW-IR-71-3.17 to 12.19",null,null,null,null,null,null,null,null,null,null,null,null,null,null,null,null,null,null,null,null,{"$f":"HYPERLINK(\"http://maps.google.com/maps?f=q&source=s_q&hl=en&geocode=&q=40.390533,+-82.823284+(SMRWIR00071**C  SLM 3.17)+to:40.490265,+-82.727736+(SMRWIR00071**C SLM 12.19)&t=m\",\"Google Map\")","v":"Google Map"}]
[null,null,null,null,null,"PE",8.4088999999999997E-2,null,null,null,null,null,null,8.4088999999999997E-2,3.3378999999999999E-2,4.9445999999999997E-2,1.2639999999999999E-3,null,null,null,null,null,null,null,null,null,null,null,null,null,null,null,null,null,null,null,null,null,null,null,null,null,null,null,null,null,null,null,null,null,null,null,null,null,null,null,null,null,null,null,null,null,null,null,null,null,null,null,null,33379,49446,1264]
[null,null,null,null,null,"DD",1.2896240000000001,null,null,null,null,null,null,1.2896240000000001,null,4.6239999999999996E-3,null,1.2849999999999999,null,null,null,null,null,null,null,null,null,null,null,null,null,null,null,null,null,null,null,null,null,null,null,null,null,null,null,null,null,null,null,null,null,null,null,null,null,null,null,null,null,null,null,null,null,null,null,null,null,null,null,null,4624,null,1285000]
[null,null,null,null,null,"RW",0.63800000000000001,null,null,null,null,null,null,0.63800000000000001,null,null,0.63800000000000001,null,null,null,null,null,null,null,null,null,null,null,null,null,null,null,null,null,null,null,null,null,null,null,null,null,null,null,null,null,null,null,null,null,null,null,null,null,null,null,null,null,null,null,null,null,null,null,null,null,null,null,null,null,null,638000]
[null,null,null,null,null,"CO",50.615608000000002,null,null,null,null,null,null,50.615608000000002,null,null,6.0800000000000003E-4,50.615000000000002,null,null,null,null,null,null,null,null,null,null,null,null,null,null,null,null,null,null,null,null,null,null,null,null,null,null,null,null,null,null,null,null,null,null,null,null,null,null,null,null,null,null,null,null,null,null,null,null,null,null,null,null,null,608,50615000]
[null,null,null,null,null,"Total",52.627321000000002,null,null,null,null,null,null,52.627321000000002,3.3378999999999999E-2,5.4069999999999993E-2,0.63987200000000011,51.9]
[6,86921,"2012-06-01",2012,"DEL-IR-71-11.5 to 17.23",null,null,null,null,null,null,null,null,null,null,null,null,null,null,null,null,null,null,null,null,{"$f":"HYPERLINK(\"http://maps.google.com/maps?f=q&source=s_q&hl=en&geocode=&q=40.293475,+-82.924841+(SDELIR00071**C  SLM 11.5)+to:40.354636,+-82.856322+(SDELIR00071**C SLM 17.23)&t=m\",\"Google Map\")","v":"Google Map"}]
[null,null,null,null,null,"PE",0.87663053000000002,null,null,null,null,null,null,0.87663053000000002,null,0.75856000000000001,0.103271,1.479953E-2,null,null,null,null,null,null,null,null,null,null,null,null,null,null,null,null,null,null,null,null,null,null,null,null,null,null,null,null,null,null,null,null,null,null,null,null,null,null,null,null,null,null,null,null,null,null,null,null,null,null,null,null,758560,103271,14799.53]
[null,null,null,null,null,"DD",1.502,null,null,null,null,null,null,1.502,null,null,1.502,null,null,null,null,null,null,null,null,null,null,null,null,null,null,null,null,null,null,null,null,null,null,null,null,null,null,null,null,null,null,null,null,null,null,null,null,null,null,null,null,null,null,null,null,null,null,null,null,null,null,null,null,null,null,1502000]
[null,null,null,null,null,"CO",48.422483999999997,null,null,null,null,null,null,48.422483999999997,null,null,48.322484000000003,0.1,null,null,null,null,null,null,null,null,null,null,null,null,null,null,null,null,null,null,null,null,null,null,null,null,null,null,null,null,null,null,null,null,null,null,null,null,null,null,null,null,null,null,null,null,null,null,null,null,null,null,null,null,null,48322484,100000]
[null,null,null,null,null,"Total",50.80111453,null,null,null,null,null,null,50.80111453,null,0.75856000000000001,49.927755000000005,0.11479953000000001]
[6,92230,"2015-01-01",2015,"DEL-IR-71-13.02 to 13.12",null,null,null,null,null,null,null,null,null,null,null,null,null,null,null,null,null,null,null,null,{"$f":"HYPERLINK(\"http://maps.google.com/maps?f=q&source=s_q&hl=en&geocode=&q=40.313365,+-82.914249+(SDELIR00071**C  SLM 13.02)+to:40.314428,+-82.912987+(SDELIR00071**C SLM 13.12)&t=m\",\"Google Map\")","v":"Google Map"}]
[null,null,null,null,null,"DD",0.8,null,null,null,null,null,null,0.8,null,null,null,0.8,null,null,null,null,null,null,null,null,null,null,null,null,null,null,null,null,null,null,null,null,null,null,null,null,null,null,null,null,null,null,null,null,null,null,null,null,null,null,null,null,null,null,null,null,null,null,null,null,null,null,null,null,null,null,800000]
[null,null,null,null,null,"RW",0.1,null,null,null,null,null,null,0.1,null,null,null,null,0.1,null,null,null,null,null,null,null,null,null,null,null,null,null,null,null,null,null,null,null,null,null,null,null,null,null,null,null,null,null,null,null,null,null,null,null,null,null,null,null,null,null,null,null,null,null,null,null,null,null,null,null,null,null,null,100000]
[null,null,null,null,null,"CO",8,null,null,null,null,null,null,8,null,null,null,null,null,8,null,null,null,null,null,null,null,null,null,null,null,null,null,null,null,null,null,null,null,null,null,null,null,null,null,null,null,null,null,null,null,null,null,null,null,null,null,null,null,null,null,null,null,null,null,null,null,null,null,null,null,null,null,null,8000000]
[null,null,null,null,null,"Total",8.9,null,null,null,null,null,null,8.9,null,null,null,0.8,0.1,8]
[6,92610,"2013-06-17",2013,"FRA-IR-270-52.72 to 54.97",null,null,null,null,null,null,null,null,null,null,null,null,null,null,null,null,null,null,null,null,{"$f":"HYPERLINK(\"http://maps.google.com/maps?f=q&source=s_q&hl=en&geocode=&q=39.875013,+-83.003567+(SFRAIR00270**C  SLM 52.72)+to:39.892236,+-83.038895+(SFRAIR00270**C SLM 54.97)&t=m\",\"Google Map\")","v":"Google Map"}]
[null,null,null,null,null,"DD",1.250894,null,null,null,null,null,null,1.250894,null,null,null,1.250894,null,null,null,null,null,null,null,null,null,null,null,null,null,null,null,null,null,null,null,null,null,null,null,null,null,null,null,null,null,null,null,null,null,null,null,null,null,null,null,null,null,null,null,null,null,null,null,null,null,null,null,null,null,null,1250894]
[null,null,null,null,null,"CO",25.8,null,null,null,null,null,null,25.8,null,null,null,25.8,null,null,null,null,null,null,null,null,null,null,null,null,null,null,null,null,null,null,null,null,null,null,null,null,null,null,null,null,null,null,null,null,null,null,null,null,null,null,null,null,null,null,null,null,null,null,null,null,null,null,null,null,null,null,25800000]
[null,null,null,null,null,"Total",27.050894,null,null,null,null,null,null,27.050894,null,null,null,27.050894]
[6,93496,"2015-04-01",2015,"FRA-IR-71-0 to 5.29",null,null,null,null,null,null,null,null,null,null,null,null,null,null,null,null,null,null,null,null,{"$f":"HYPERLINK(\"http://maps.google.com/maps?f=q&source=s_q&hl=en&geocode=&q=39.809609,+-83.194691+(SFRAIR00071**C  SLM 0)+to:39.833474,+-83.101371+(SFRAIR00071**C SLM 5.29)&t=m\",\"Google Map\")","v":"Google Map"}]
[null,null,null,null,null,"PE",2,null,null,null,null,null,null,2,null,null,null,0.61840899999999999,1.381591,null,null,null,null,null,null,null,null,null,null,null,null,null,null,null,null,null,null,null,null,null,null,null,null,null,null,null,null,null,null,null,null,null,null,null,null,null,null,null,null,null,null,null,null,null,null,null,null,null,null,null,null,null,618409,1381591]
[null,null,null,null,null,"DD",0.64888999999999997,null,null,null,null,null,null,0.64888999999999997,null,null,null,0.14888999999999999,0.5,null,null,null,null,null,null,null,null,null,null,null,null,null,null,null,null,null,null,null,null,null,null,null,null,null,null,null,null,null,null,null,null,null,null,null,null,null,null,null,null,null,null,null,null,null,null,null,null,null,null,null,null,null,148890,500000]
[null,null,null,null,null,"CO",28,null,null,null,null,null,null,28,null,null,null,null,null,28,null,null,null,null,null,null,null,null,null,null,null,null,null,null,null,null,null,null,null,null,null,null,null,null,null,null,null,null,null,null,null,null,null,null,null,null,null,null,null,null,null,null,null,null,null,null,null,null,null,null,null,null,null,null,28000000]
[null,null,null,null,null,"Total",30.648890000000002,null,null,null,null,null,null,30.648890000000002,null,null,null,0.76729899999999995,1.881591,28]
[6,93497,"2015-04-01",2015,"FRA-IR-71-9.78 to 14.98",null,null,null,null,null,null,null,null,null,null,null,null,null,null,null,null,null,null,null,null,{"$f":"HYPERLINK(\"http://maps.google.com/maps?f=q&source=s_q&hl=en&geocode=&q=39.881679,+-83.047519+(SFRAIR00071**C  SLM 9.78)+to:39.947408,+-83.014553+(SFRAIR00071**C SLM 14.98)&t=m\",\"Google Map\")","v":"Google Map"}]
[null,null,null,null,null,"PE",3.3,null,null,null,null,null,null,3.3,null,null,null,1,2.2999999999999998,null,null,null,null,null,null,null,null,null,null,null,null,null,null,null,null,null,null,null,null,null,null,null,null,null,null,null,null,null,null,null,null,null,null,null,null,null,null,null,null,null,null,null,null,null,null,null,null,null,null,null,null,null,1000000,2300000]
[null,null,null,null,null,"DD",1.6,null,null,null,null,null,null,1.6,null,null,null,null,1.6,null,null,null,null,null,null,null,null,null,null,null,null,null,null,null,null,null,null,null,null,null,null,null,null,null,null,null,null,null,null,null,null,null,null,null,null,null,null,null,null,null,null,null,null,null,null,null,null,null,null,null,null,null,null,1600000]
[null,null,null,null,null,"CO",49,null,null,null,null,null,null,49,null,null,null,null,null,49,null,null,null,null,null,null,null,null,null,null,null,null,null,null,null,null,null,null,null,null,null,null,null,null,null,null,null,null,null,null,null,null,null,null,null,null,null,null,null,null,null,null,null,null,null,null,null,null,null,null,null,null,null,null,49000000]
[null,null,null,null,null,"Total",53.9,null,null,null,null,null,null,53.9,null,null,null,1,3.9,49]
[6,null,null,null,null,"G. Total",501.6220272700001,null,null,null,8.6999999999999993,null,null,510.32202727000015,5.5571333600000008,2.22685953,174.42972385000002,86.467179529999996,10.808130999999999,187.333,43.5]
[7,17067,"2006-03-06",2006,"MOT-US-35-15.07 to 18.59",null,null,null,null,null,null,null,null,null,null,null,null,null,null,null,null,null,null,null,null,{"$f":"HYPERLINK(\"http://maps.google.com/maps?f=q&source=s_q&hl=en&geocode=&q=39.747281,+-84.211508+(SMOTUS00035**C  SLM 15.07)+to:39.753695,+-84.147567+(SMOTUS00035**C SLM 18.59)&t=m\",\"Google Map\")","v":"Google Map"}]
[null,null,null,null,null,"OT/SPR",null,1.3072559999999999E-2,null,null,null,null,null,1.3072559999999999E-2,1.3072559999999999E-2,null,null,null,null,null,null,null,null,null,null,null,null,null,null,null,null,null,null,null,null,null,null,null,null,null,null,null,null,null,null,null,null,null,null,null,null,null,null,null,null,null,null,null,null,null,null,null,null,null,null,null,null,null,null,null,null,null,null,null,null,null,null,null,null,null,null,null,null,null,null,null,null,null,null,null,null,null,null,null,null,null,null,null,null,null,null,null,null,null,null,null,null,null,null,null,null,null,null,null,null,null,null,null,null,null,null,null,13072.56]
[null,null,null,null,null,"PE",null,2.1664900000000001E-2,null,null,null,null,null,2.1664900000000001E-2,2.1664900000000001E-2,null,null,null,null,null,null,null,null,null,null,null,null,null,null,null,null,null,null,null,null,null,null,null,null,null,null,null,null,null,null,null,null,null,null,null,null,null,null,null,null,null,null,null,null,null,null,null,null,null,null,null,null,null,null,null,null,null,null,null,null,null,null,null,null,null,null,null,null,null,null,null,null,null,null,null,null,null,null,null,null,null,null,null,null,null,null,null,null,null,null,null,null,null,null,null,null,null,null,null,null,null,null,null,null,null,null,null,null,21664.9]
[null,null,null,null,null,"DD",null,4.6678839999999999,null,null,null,null,null,4.6678839999999999,4.6678839999999999,null,null,null,null,null,null,null,null,null,null,null,null,null,null,null,null,null,null,null,null,null,null,null,null,null,null,null,null,null,null,null,null,null,null,null,null,null,null,null,null,null,null,null,null,null,null,null,null,null,null,null,null,null,null,null,null,null,null,null,null,null,null,null,null,null,null,null,null,null,null,null,null,null,null,null,null,null,null,null,null,null,null,null,null,null,null,null,null,null,null,null,null,null,null,null,null,null,null,null,null,null,null,null,null,null,null,null,1265837,3397252,4795]
[null,null,null,null,null,"CO",26.335977209999996,27.983720750000003,0.16252816,null,null,null,null,54.48222612,54.48222612,null,null,null,null,null,null,null,null,null,null,null,null,null,null,null,null,null,null,null,null,null,null,null,null,null,null,null,null,null,null,null,null,null,null,null,null,null,null,null,null,null,null,null,null,null,null,null,null,null,null,25800973.559999999,535003.65,null,null,null,null,null,null,null,null,null,null,null,null,null,null,null,null,null,null,null,null,null,null,null,null,null,null,null,null,null,null,null,null,null,null,null,null,null,null,null,null,null,null,null,null,null,null,null,null,null,null,null,null,null,null,null,null,null,26893303.890000004,1088276.2999999998,2140.56,null,null,null,null,null,null,null,null,null,null,null,null,null,null,null,null,null,null,null,null,null,null,null,null,null,null,null,null,null,null,null,null,null,null,null,null,null,null,null,null,null,null,null,null,null,null,null,null,null,null,null,null,null,null,null,null,null,null,162528.16]
[null,null,null,null,null,"Total",26.335977209999996,32.686342210000007,0.16252816,null,null,null,null,59.184847579999996,59.184847579999996]
[7,22935,"2005-10-19",2006,"MOT-IR-70-17.04 to 23.55",null,null,null,null,null,null,null,null,null,null,null,null,null,null,null,null,null,null,null,null,{"$f":"HYPERLINK(\"http://maps.google.com/maps?f=q&source=s_q&hl=en&geocode=&q=39.866237,+-84.173285+(SMOTIR00070**C  SLM 17.04)+to:39.865134,+-84.052279+(SMOTIR00070**C SLM 23.55)&t=m\",\"Google Map\")","v":"Google Map"}]
[null,null,null,null,null,"PE",null,null,1.8024499999999999E-2,null,null,null,null,1.8024499999999999E-2,1.8024499999999999E-2,null,null,null,null,null,null,null,null,null,null,null,null,null,null,null,null,null,null,null,null,null,null,null,null,null,null,null,null,null,null,null,null,null,null,null,null,null,null,null,null,null,null,null,null,null,null,null,null,null,null,null,null,null,null,null,null,null,null,null,null,null,null,null,null,null,null,null,null,null,null,null,null,null,null,null,null,null,null,null,null,null,null,null,null,null,null,null,null,null,null,null,null,null,null,null,null,null,null,null,null,null,null,null,null,null,null,null,null,null,null,null,null,null,null,null,null,null,null,null,null,null,null,null,null,null,null,null,null,null,null,null,null,null,null,null,null,null,null,null,null,null,null,null,null,null,null,null,null,null,null,null,null,null,null,null,null,null,null,null,null,null,null,null,null,null,null,null,null,12246.58,null,5777.92]
[null,null,null,null,null,"DD",null,null,2.4812523,null,null,null,null,2.4812523,2.4812523,null,null,null,null,null,null,null,null,null,null,null,null,null,null,null,null,null,null,null,null,null,null,null,null,null,null,null,null,null,null,null,null,null,null,null,null,null,null,null,null,null,null,null,null,null,null,null,null,null,null,null,null,null,null,null,null,null,null,null,null,null,null,null,null,null,null,null,null,null,null,null,null,null,null,null,null,null,null,null,null,null,null,null,null,null,null,null,null,null,null,null,null,null,null,null,null,null,null,null,null,null,null,null,null,null,null,null,null,null,null,null,null,null,null,null,null,null,null,null,null,null,null,null,null,null,null,null,null,null,null,null,null,null,null,null,null,null,null,null,null,null,null,null,null,null,null,null,null,null,null,null,null,null,null,null,null,null,null,null,null,null,null,null,null,null,2060284,406451.3,null,14517]
[null,null,null,null,null,"RW",null,null,0.10184144000000001,null,null,null,null,0.10184144000000001,0.10184144000000001,null,null,null,null,null,null,null,null,null,null,null,null,null,null,null,null,null,null,null,null,null,null,null,null,null,null,null,null,null,null,null,null,null,null,null,null,null,null,null,null,null,null,null,null,null,null,null,null,null,null,null,null,null,null,null,null,null,null,null,null,null,null,null,null,null,null,null,null,null,null,null,null,null,null,null,null,null,null,null,null,null,null,null,null,null,null,null,null,null,null,null,null,null,null,null,null,null,null,null,null,null,null,null,null,null,null,null,null,null,null,null,null,null,null,null,null,null,null,null,null,null,null,null,null,null,null,null,null,null,null,null,null,null,null,null,null,null,null,null,null,null,null,null,null,null,null,null,null,null,null,null,null,null,null,null,null,null,null,null,null,null,null,null,null,null,null,87841.44,14000]
[null,null,null,null,null,"CO",47.843521979999991,null,17.572061210000001,null,null,null,null,65.415583189999992,65.415583189999978,null,null,null,null,null,null,null,null,null,null,null,null,null,null,null,null,null,null,null,null,null,null,null,null,null,null,null,null,null,null,null,null,null,null,null,null,null,null,null,null,null,null,null,null,null,null,null,null,null,null,45051009.369999997,1136229.8999999999,620766.37,568025.93999999994,467490.4,0,null,null,null,null,null,null,null,null,null,null,null,null,null,null,null,null,null,null,null,null,null,null,null,null,null,null,null,null,null,null,null,null,null,null,null,null,null,null,null,null,null,null,null,null,null,null,null,null,null,null,null,null,null,null,null,null,null,null,null,null,null,null,null,null,null,null,null,null,null,null,null,null,null,null,null,null,null,null,null,null,null,null,null,null,null,null,null,null,null,null,null,null,null,null,null,null,null,null,null,null,null,null,null,null,null,null,null,null,null,null,null,null,16987724.609999999,30000,201072.32,11188.87,342075.41]
[null,null,null,null,null,"Total",47.843521979999991,null,20.173179449999999,null,null,null,null,68.016701429999998,68.016701429999983]
[7,75315,"2008-05-22",2008,"CLA-IR-70-20.93 to 25.11",null,null,null,null,null,null,null,null,null,null,null,null,null,null,null,null,null,null,null,null,{"$f":"HYPERLINK(\"http://maps.google.com/maps?f=q&source=s_q&hl=en&geocode=&q=39.925164,+-83.686395+(SCLAIR00070**C  SLM 20.93)+to:39.932691,+-83.612108+(SCLAIR00070**C SLM 25.11)&t=m\",\"Google Map\")","v":"Google Map"}]
[null,null,null,null,null,"DD",null,null,0.37562983999999999,null,null,null,null,0.37562983999999999,0.37562983999999999,null,null,null,null,null,null,null,null,null,null,null,null,null,null,null,null,null,null,null,null,null,null,null,null,null,null,null,null,null,null,null,null,null,null,null,null,null,null,null,null,null,null,null,null,null,null,null,null,null,null,null,null,null,null,null,null,null,null,null,null,null,null,null,null,null,null,null,null,null,null,null,null,null,null,null,null,null,null,null,null,null,null,null,null,null,null,null,null,null,null,null,null,null,null,null,null,null,null,null,null,null,null,null,null,null,null,null,null,null,null,null,null,null,null,null,null,null,null,null,null,null,null,null,null,null,null,null,null,null,null,null,null,null,null,null,null,null,null,null,null,null,null,null,null,null,null,null,null,null,null,null,null,null,null,null,null,null,null,null,null,null,null,null,null,null,null,null,null,null,363169.87,12459.97]
[null,null,null,null,null,"CO",11.183753450000001,null,12.16468051,null,null,null,null,23.348433960000001,23.348433960000001,null,null,null,null,null,null,null,null,null,null,null,null,null,null,null,null,null,null,null,null,null,null,null,null,null,null,null,null,null,null,null,null,null,null,null,null,null,null,null,null,null,null,null,null,null,null,null,null,null,null,null,null,9376465.1400000006,1468119.4899999998,339168.82,null,null,null,null,null,null,null,null,null,null,null,null,null,null,null,null,null,null,null,null,null,null,null,null,null,null,null,null,null,null,null,null,null,null,null,null,null,null,null,null,null,null,null,null,null,null,null,null,null,null,null,null,null,null,null,null,null,null,null,null,null,null,null,null,null,null,null,null,null,null,null,null,null,null,null,null,null,null,null,null,null,null,null,null,null,null,null,null,null,null,null,null,null,null,null,null,null,null,null,null,null,null,null,null,null,null,null,null,null,null,null,null,null,null,null,10822956.66,1188081.9100000001,153641.94]
[null,null,null,null,null,"Total",11.183753450000001,null,12.54031035,null,null,null,null,23.7240638,23.7240638]
[7,76667,"2013-12-23",2014,"MOT-IR-70-10.79 to 14.22",null,null,null,null,null,null,null,null,null,null,null,null,null,null,null,null,null,null,null,null,{"$f":"HYPERLINK(\"http://maps.google.com/maps?f=q&source=s_q&hl=en&geocode=&q=39.856026,+-84.289302+(SMOTIR00070**C  SLM 10.79)+to:39.864415,+-84.226349+(SMOTIR00070**C SLM 14.22)&t=m\",\"Google Map\")","v":"Google Map"}]
[null,null,null,null,null,"PE",2.1954959999999999,null,null,null,null,null,null,2.1954959999999999,0.95190399999999997,0.305035,0.14585500000000001,0.79270200000000002,null,null,null,null,null,null,null,null,null,null,null,null,null,null,null,null,null,null,null,null,null,null,null,null,null,null,null,null,null,null,null,null,null,null,null,null,null,null,null,null,null,null,null,null,null,null,null,null,null,null,null,951904,305035,145855,792702]
[null,null,null,null,null,"RW",0.15,null,null,null,null,null,null,0.15,null,null,null,0.15,null,null,null,null,null,null,null,null,null,null,null,null,null,null,null,null,null,null,null,null,null,null,null,null,null,null,null,null,null,null,null,null,null,null,null,null,null,null,null,null,null,null,null,null,null,null,null,null,null,null,null,null,null,null,150000]
[null,null,null,null,null,"CO",45.129950139999998,null,null,null,0.01,null,null,45.139950139999996,null,null,null,null,45.139950140000003,null,null,null,null,null,null,null,null,null,null,null,null,null,null,null,null,null,null,null,null,null,null,null,null,null,null,null,null,null,null,null,null,null,null,null,null,null,null,null,null,null,null,null,null,null,null,null,null,null,null,null,null,null,null,45129950.140000001,null,null,null,null,null,null,null,null,null,null,null,null,null,null,null,null,null,null,null,null,null,null,null,null,null,null,null,null,null,null,null,null,null,null,null,null,null,null,null,null,null,null,null,null,null,null,null,null,null,null,null,null,null,null,null,null,null,null,null,null,null,null,null,null,null,null,null,null,null,null,null,null,null,null,null,null,null,null,null,null,null,null,null,null,null,null,null,null,null,null,null,null,null,null,null,null,null,null,null,null,null,null,null,null,null,null,null,null,null,null,null,null,null,null,null,null,null,null,null,null,null,null,null,null,null,null,null,null,null,null,null,null,null,null,null,null,null,null,null,null,null,null,null,null,null,null,null,null,null,null,null,null,null,null,null,null,null,null,null,null,null,null,null,null,null,null,null,null,null,null,null,null,null,null,null,null,null,null,null,null,null,null,null,null,null,null,null,null,null,null,null,null,null,null,null,null,null,null,null,null,null,null,null,null,null,null,null,null,null,null,null,null,null,null,null,null,null,null,null,null,null,null,null,null,null,null,null,null,null,null,null,null,null,null,null,10000]
[null,null,null,null,null,"Total",47.475446139999995,null,null,null,0.01,null,null,47.485446139999993,0.95190399999999997,0.305035,0.14585500000000001,0.94270200000000004,45.139950140000003]
[7,78425,"2015-10-01",2016,"MIA-IR-75-18.9 to 19.95",null,null,null,null,null,null,null,null,null,null,null,null,null,null,null,null,null,null,null,null,{"$f":"HYPERLINK(\"http://maps.google.com/maps?f=q&source=s_q&hl=en&geocode=&q=40.18061,+-84.215396+(SMIAIR00075**C  SLM 18.9)+to:40.194862,+-84.208009+(SMIAIR00075**C SLM 19.95)&t=m\",\"Google Map\")","v":"Google Map"}]
[null,null,null,null,null,"CO",16.07961924,null,null,null,null,null,null,16.07961924,null,null,null,null,null,null,16.07961924,null,null,null,null,null,null,null,null,null,null,null,null,null,null,null,null,null,null,null,null,null,null,null,null,null,null,null,null,null,null,null,null,null,null,null,null,null,null,null,null,null,null,null,null,null,null,null,null,null,null,null,null,null,null,16079619.24]
[null,null,null,null,null,"Total",16.07961924,null,null,null,null,null,null,16.07961924,null,null,null,null,null,null,16.07961924]
[7,84664,"2010-06-03",2010,"CLA-IR-70-13.98 to 20.93",null,null,null,null,null,null,null,null,null,null,null,null,null,null,null,null,null,null,null,null,{"$f":"HYPERLINK(\"http://maps.google.com/maps?f=q&source=s_q&hl=en&geocode=&q=39.890607,+-83.798492+(SCLAIR00070**C  SLM 13.98)+to:39.925164,+-83.686395+(SCLAIR00070**C SLM 20.93)&t=m\",\"Google Map\")","v":"Google Map"}]
[null,null,null,null,null,"CO",27.145941820000001,null,null,null,null,null,null,27.145941820000001,27.145941820000001,null,null,null,null,null,null,null,null,null,null,null,null,null,null,null,null,null,null,null,null,null,null,null,null,null,null,null,null,null,null,null,null,null,null,null,null,null,null,null,null,null,null,null,null,null,null,null,null,null,null,null,null,null,null,27145941.82]
[null,null,null,null,null,"Total",27.145941820000001,null,null,null,null,null,null,27.145941820000001,27.145941820000001]
[7,null,null,null,null,"G. Total",176.06425983999998,32.686342210000007,32.876017959999999,null,0.01,null,null,241.63662000999997,179.02345862999999,0.305035,0.14585500000000001,0.94270200000000004,45.139950140000003,null,16.07961924]
[8,10754,"2009-04-27",2009,"WAR-IR-75-3.42 to 12.2",null,null,null,null,null,null,null,null,null,null,null,null,null,null,null,null,null,null,null,null,{"$f":"HYPERLINK(\"http://maps.google.com/maps?f=q&source=s_q&hl=en&geocode=&q=39.4824,+-84.325003+(SWARIR00075**C  SLM 3.42)+to:39.58653,+-84.243484+(SWARIR00075**C SLM 12.2)&t=m\",\"Google Map\")","v":"Google Map"}]
[null,null,null,null,null,"DD",0.1539616,null,6.9668949099999997,null,null,null,null,7.1208565099999994,7.1208565099999994,null,null,null,null,null,null,null,null,null,null,null,null,null,null,null,null,null,null,null,null,null,null,null,null,null,null,null,null,null,null,null,null,null,null,null,null,null,null,null,null,null,null,null,null,null,null,null,null,null,null,41718.400000000001,112243.2,null,null,null,null,null,null,null,null,null,null,null,null,null,null,null,null,null,null,null,null,null,null,null,null,null,null,null,null,null,null,null,null,null,null,null,null,null,null,null,null,null,null,null,null,null,null,null,null,null,null,null,null,null,null,null,null,null,null,null,null,null,null,null,null,null,null,null,null,null,null,null,null,null,null,null,null,null,null,null,null,null,null,null,null,null,null,null,null,null,null,null,null,null,null,null,null,null,null,null,null,null,null,null,null,null,null,null,null,null,null,null,null,null,null,134946.07999999999,4000000,416629.98,2385730.85,29588]
[null,null,null,null,null,"RW",null,null,8.3867209500000008,null,null,null,null,8.3867209500000008,6.2107616100000005,1.92157976,null,0.25437957999999999,null,null,null,null,null,null,null,null,null,null,null,null,null,null,null,null,null,null,null,null,null,null,null,null,null,null,null,null,null,null,null,null,null,null,null,null,null,null,null,null,null,null,null,null,null,null,null,null,null,null,null,null,null,null,null,null,null,null,null,null,null,null,null,null,null,null,null,null,null,null,null,null,null,null,null,null,null,null,null,null,null,null,null,null,null,null,null,null,null,null,null,null,null,null,null,null,null,null,null,null,null,null,null,null,null,null,null,null,null,null,null,null,null,null,null,null,null,null,null,null,null,null,null,null,null,null,null,null,null,null,null,null,null,null,null,null,null,null,null,null,null,null,null,null,null,null,null,null,null,null,null,null,null,null,null,null,null,null,null,null,null,null,null,null,null,null,17500,5582770.2400000002,6000,604491.37,1921579.76,null,254379.58000000002]
[null,null,null,null,null,"CO",43.588638100000004,null,74.057771990000006,null,null,null,null,117.64641009000002,107.99634936000001,0.71615606000000009,7.06130558,1.8725990899999998,null,null,null,null,null,null,null,null,null,null,null,null,null,null,null,null,null,null,null,null,null,null,null,null,null,null,null,null,null,null,null,null,null,null,null,null,null,null,null,null,null,null,null,null,null,null,null,null,null,null,41162913.32,101506.39,181459.44,1099127.8899999999,1043631.06,null,null,null,null,null,null,null,null,null,null,null,null,null,null,null,null,null,null,null,null,null,null,null,null,null,null,null,null,null,null,null,null,null,null,null,null,null,null,null,null,null,null,null,null,null,null,null,null,null,null,null,null,null,null,null,null,null,null,null,null,null,null,null,null,null,null,null,null,null,null,null,null,null,null,null,null,null,null,null,null,null,null,null,null,null,null,null,null,null,null,null,null,null,null,null,null,null,null,null,null,null,null,null,null,null,null,null,null,null,null,null,null,null,65301483.120000005,1430446.53,534696.62,5962177.6900000004,828968.02999999991]
[null,null,null,null,null,"Total",43.742599700000007,null,89.411387850000011,null,null,null,null,133.15398755000001,121.32796748000001,2.6377358200000001,7.06130558,2.1269786699999997]
[8,22386,"2006-11-09",2007,"HAM-IR-275-21.52 to 22.81",null,null,null,null,null,null,null,null,null,null,null,null,null,null,null,null,null,null,null,null,{"$f":"HYPERLINK(\"http://maps.google.com/maps?f=q&source=s_q&hl=en&geocode=&q=39.300439,+-84.518732+(SHAMIR00275**C  SLM 21.52)+to:39.29608,+-84.495664+(SHAMIR00275**C SLM 22.81)&t=m\",\"Google Map\")","v":"Google Map"}]
[null,null,null,null,null,"DD",3.4825200300000003,null,5.4123965300000005,null,null,null,null,8.8949165600000004,8.8949165600000004,null,null,null,null,null,null,null,null,null,null,null,null,null,null,null,null,null,null,null,null,null,null,null,null,null,null,null,null,null,null,null,null,null,null,null,null,null,null,null,null,null,null,null,null,null,null,2500000,null,null,982520.03,null,null,null,null,null,null,null,null,null,null,null,null,null,null,null,null,null,null,null,null,null,null,null,null,null,null,null,null,null,null,null,null,null,null,null,null,null,null,null,null,null,null,null,null,null,null,null,null,null,null,null,null,null,null,null,null,null,null,null,null,null,null,null,null,null,null,null,null,null,null,null,null,null,null,null,null,null,null,null,null,null,null,null,null,null,null,null,null,null,null,null,null,null,null,null,null,null,null,null,null,null,null,null,null,null,null,null,null,null,null,null,null,null,null,null,2971753,2266470,32651,141522.53]
[null,null,null,null,null,"RW",null,null,1.658682,null,null,null,null,1.658682,1.658682,null,null,null,null,null,null,null,null,null,null,null,null,null,null,null,null,null,null,null,null,null,null,null,null,null,null,null,null,null,null,null,null,null,null,null,null,null,null,null,null,null,null,null,null,null,null,null,null,null,null,null,null,null,null,null,null,null,null,null,null,null,null,null,null,null,null,null,null,null,null,null,null,null,null,null,null,null,null,null,null,null,null,null,null,null,null,null,null,null,null,null,null,null,null,null,null,null,null,null,null,null,null,null,null,null,null,null,null,null,null,null,null,null,null,null,null,null,null,null,null,null,null,null,null,null,null,null,null,null,null,null,null,null,null,null,null,null,null,null,null,null,null,null,null,null,null,null,null,null,null,null,null,null,null,null,null,null,null,null,null,null,null,null,null,null,null,null,null,22500,843025.88,null,null,793156.12]
[null,null,null,null,null,"CO",98.901604059999997,null,44.068094600000002,null,null,null,null,142.96969866000001,142.84703866000001,0.12266000000000001,null,null,null,null,null,null,null,null,null,null,null,null,null,null,null,null,null,null,null,null,null,null,null,null,null,null,null,null,null,null,null,null,null,null,null,null,null,null,null,null,null,null,null,null,null,null,null,null,null,null,96306791.849999994,178899.29,1649926.48,765986.44000000006,null,null,null,null,null,null,null,null,null,null,null,null,null,null,null,null,null,null,null,null,null,null,null,null,null,null,null,null,null,null,null,null,null,null,null,null,null,null,null,null,null,null,null,null,null,null,null,null,null,null,null,null,null,null,null,null,null,null,null,null,null,null,null,null,null,null,null,null,null,null,null,null,null,null,null,null,null,null,null,null,null,null,null,null,null,null,null,null,null,null,null,null,null,null,null,null,null,null,null,null,null,null,null,null,null,null,null,null,null,null,null,null,null,null,41059842.219999999,120013.93,544548.81000000006,2221029.6399999997,122660]
[null,null,null,null,null,"Total",102.38412409,null,51.139173130000003,null,null,null,null,153.52329722000002,153.40063722000002,0.12266000000000001]
[8,24664,"2007-12-20",2008,"BUT-IR-75-3.76 to 5.21",null,null,null,null,null,null,null,null,null,null,null,null,null,null,null,null,null,null,null,null,{"$f":"HYPERLINK(\"http://maps.google.com/maps?f=q&source=s_q&hl=en&geocode=&q=39.341549,+-84.396478+(SBUTIR00075**C  SLM 3.76)+to:39.352843,+-84.375112+(SBUTIR00075**C SLM 5.21)&t=m\",\"Google Map\")","v":"Google Map"}]
[null,null,null,null,null,"DD",1.69758458,null,2.2428041200000002,null,2.9989999999999999E-3,null,null,3.9433877000000002,3.9433877000000002,null,null,null,null,null,null,null,null,null,null,null,null,null,null,null,null,null,null,null,null,null,null,null,null,null,null,null,null,null,null,null,null,null,null,null,null,null,null,null,null,null,null,null,null,null,null,null,30000,1562122,105462.58,null,null,null,null,null,null,null,null,null,null,null,null,null,null,null,null,null,null,null,null,null,null,null,null,null,null,null,null,null,null,null,null,null,null,null,null,null,null,null,null,null,null,null,null,null,null,null,null,null,null,null,null,null,null,null,null,null,null,null,null,null,null,null,null,null,null,null,null,null,null,null,null,null,null,null,null,null,null,null,null,null,null,null,null,null,null,null,null,null,null,null,null,null,null,null,null,null,null,null,null,null,null,null,null,null,null,null,null,null,null,null,null,null,null,null,null,null,2230744.35,12059.77,null,null,null,null,null,null,null,null,null,null,null,null,null,null,null,null,null,null,null,null,null,null,null,null,null,null,null,null,null,null,null,null,null,null,null,null,null,null,null,null,null,null,null,null,null,null,null,null,null,null,null,null,null,null,null,null,null,null,null,null,null,null,null,null,null,null,null,null,null,null,null,null,null,null,null,null,null,null,null,null,null,null,null,null,null,null,null,null,null,null,null,null,null,null,null,null,null,null,null,null,null,null,null,null,null,null,null,null,null,null,null,null,null,null,null,null,null,null,null,2999]
[null,null,null,null,null,"RW",0.5286583600000001,null,null,null,null,null,null,0.5286583600000001,0.5286583600000001,null,null,null,null,null,null,null,null,null,null,null,null,null,null,null,null,null,null,null,null,null,null,null,null,null,null,null,null,null,null,null,null,null,null,null,null,null,null,null,null,null,null,null,null,null,null,null,null,null,null,116850,138487.46000000002,126864.31999999999,146456.58000000002]
[null,null,null,null,null,"CO",39.986098400000003,null,60.440904330000002,null,null,null,null,100.42700273,100.25434737,0.11448497000000001,4.2024190000000003E-2,1.6146199999999999E-2,null,null,null,null,null,null,null,null,null,null,null,null,null,null,null,null,null,null,null,null,null,null,null,null,null,null,null,null,null,null,null,null,null,null,null,null,null,null,null,null,null,null,null,null,null,null,null,null,null,37895193.460000001,1033491.77,1057413.17,0,0,null,null,null,null,null,null,null,null,null,null,null,null,null,null,null,null,null,null,null,null,null,null,null,null,null,null,null,null,null,null,null,null,null,null,null,null,null,null,null,null,null,null,null,null,null,null,null,null,null,null,null,null,null,null,null,null,null,null,null,null,null,null,null,null,null,null,null,null,null,null,null,null,null,null,null,null,null,null,null,null,null,null,null,null,null,null,null,null,null,null,null,null,null,null,null,null,null,null,null,null,null,null,null,null,null,null,null,null,null,null,null,null,null,58330916.260000005,1400665.94,536666.77,114484.97,42024.19,16146.2]
[null,null,null,null,null,"Total",42.212341340000002,null,62.683708450000005,null,2.9989999999999999E-3,null,null,104.89904878999999,104.72639343,0.11448497000000001,4.2024190000000003E-2,1.6146199999999999E-2]
[8,25523,"2005-03-03",2005,"CLE-IR-275-13.79 to 13.88",null,null,null,null,null,null,null,null,null,null,null,null,null,null,null,null,null,null,null,null,{"$f":"HYPERLINK(\"http://maps.google.com/maps?f=q&source=s_q&hl=en&geocode=&q=39.061518,+-84.313171+(SCLEIR00275**C  SLM 13.79)+to:39.060936,+-84.314604+(SCLEIR00275**C SLM 13.88)&t=m\",\"Google Map\")","v":"Google Map"}]
[null,null,null,null,null,"PE",1.3958999999999999E-2,null,null,null,null,null,null,1.3958999999999999E-2,1.3958999999999999E-2,null,null,null,null,null,null,null,null,null,null,null,null,null,null,null,null,null,null,null,null,null,null,null,null,null,null,null,null,null,null,null,null,null,null,null,null,null,null,null,null,null,null,null,null,null,null,null,null,null,null,null,null,13959]
[null,null,null,null,null,"DD",0.11670700000000001,null,null,null,null,null,null,0.11670700000000001,0.11670700000000001,null,null,null,null,null,null,null,null,null,null,null,null,null,null,null,null,null,null,null,null,null,null,null,null,null,null,null,null,null,null,null,null,null,null,null,null,null,null,null,null,null,null,null,null,null,null,null,null,99660,17047]
[null,null,null,null,null,"CO",25.754179780000001,null,null,null,null,null,null,25.754179780000001,25.754179780000001,null,null,null,null,null,null,null,null,null,null,null,null,null,null,null,null,null,null,null,null,null,null,null,null,null,null,null,null,null,null,null,null,null,null,null,null,null,null,null,null,null,null,null,null,null,null,null,null,null,25652342.460000001,2201.59,99635.73]
[null,null,null,null,null,"Total",25.884845780000003,null,null,null,null,null,null,25.884845780000003,25.884845780000003]
[8,76257,"2012-11-20",2013,"HAM-IR-75-2.5 to 4",null,null,null,null,null,null,null,null,null,null,null,null,null,null,null,null,null,null,null,null,{"$f":"HYPERLINK(\"http://maps.google.com/maps?f=q&source=s_q&hl=en&geocode=&q=39.124103,+-84.535273+(SHAMIR00075**C  SLM 2.5)+to:39.14516,+-84.537049+(SHAMIR00075**C SLM 4)&t=m\",\"Google Map\")","v":"Google Map"}]
[null,null,null,null,null,"PE",null,null,0.56716970999999994,null,2.2441495599999999,null,null,2.8113192699999998,0.53314971,null,null,2.2781695600000003,null,null,null,null,null,null,null,null,null,null,null,null,null,null,null,null,null,null,null,null,null,null,null,null,null,null,null,null,null,null,null,null,null,null,null,null,null,null,null,null,null,null,null,null,null,null,null,null,null,null,null,null,null,null,null,null,null,null,null,null,null,null,null,null,null,null,null,null,null,null,null,null,null,null,null,null,null,null,null,null,null,null,null,null,null,null,null,null,null,null,null,null,null,null,null,null,null,null,null,null,null,null,null,null,null,null,null,null,null,null,null,null,null,null,null,null,null,null,null,null,null,null,null,null,null,null,null,null,null,null,null,null,null,null,null,null,null,null,null,null,null,null,null,null,null,null,null,null,null,null,null,null,null,null,null,null,null,null,null,null,null,null,null,null,500000,null,null,null,null,33149.710000000006,null,null,34020,null,null,null,null,null,null,null,null,null,null,null,null,null,null,null,null,null,null,null,null,null,null,null,null,null,null,null,null,null,null,null,null,null,null,null,null,null,null,null,null,null,null,null,null,null,null,null,null,null,null,null,null,null,null,null,null,null,null,null,null,null,null,null,null,null,null,null,null,null,null,null,null,null,null,null,null,null,null,null,null,null,null,null,null,null,null,null,null,null,null,null,null,null,null,null,null,null,null,null,null,null,null,null,null,null,null,null,null,null,null,null,null,null,null,null,null,null,2244149.56]
[null,null,null,null,null,"DD",4.1659439999999999E-2,null,26.144518449999996,null,null,null,null,26.186177889999996,23.899576499999998,0.98671390000000003,1.0250394899999999,0.27484799999999998,null,null,null,null,null,null,null,null,null,null,null,null,null,null,null,null,null,null,null,null,null,null,null,null,null,null,null,null,null,null,null,null,null,null,null,null,null,null,null,null,null,null,null,null,null,null,null,null,null,null,41659.440000000002,null,null,null,null,null,null,null,null,null,null,null,null,null,null,null,null,null,null,null,null,null,null,null,null,null,null,null,null,null,null,null,null,null,null,null,null,null,null,null,null,null,null,null,null,null,null,null,null,null,null,null,null,null,null,null,null,null,null,null,null,null,null,null,null,null,null,null,null,null,null,null,null,null,null,null,null,null,null,null,null,null,null,null,null,null,null,null,null,null,null,null,null,null,null,null,null,null,null,null,null,null,null,null,null,null,null,null,null,null,null,null,null,null,1405412,329476,6421167.4499999993,1604496.1,4601096.51,9496269,986713.9,1025039.49,274848]
[null,null,null,null,null,"RW",null,null,16.367610509999999,null,null,null,null,16.367610509999999,14.0725,0.20621051000000001,4.8800000000000003E-2,2.0400999999999998,null,null,null,null,null,null,null,null,null,null,null,null,null,null,null,null,null,null,null,null,null,null,null,null,null,null,null,null,null,null,null,null,null,null,null,null,null,null,null,null,null,null,null,null,null,null,null,null,null,null,null,null,null,null,null,null,null,null,null,null,null,null,null,null,null,null,null,null,null,null,null,null,null,null,null,null,null,null,null,null,null,null,null,null,null,null,null,null,null,null,null,null,null,null,null,null,null,null,null,null,null,null,null,null,null,null,null,null,null,null,null,null,null,null,null,null,null,null,null,null,null,null,null,null,null,null,null,null,null,null,null,null,null,null,null,null,null,null,null,null,null,null,null,null,null,null,null,null,null,null,null,null,null,null,null,null,null,null,null,null,null,null,null,null,null,null,null,null,null,14072500,206210.51,48800,2040100]
[null,null,null,null,null,"CO",21.726388320000002,null,57.789911930000002,null,null,null,null,79.51630025,null,4.3600000000000002E-3,4.4999999999999999E-4,79.511490249999994,null,null,null,null,null,null,null,null,null,null,null,null,null,null,null,null,null,null,null,null,null,null,null,null,null,null,null,null,null,null,null,null,null,null,null,null,null,null,null,null,null,null,null,null,null,null,null,null,null,null,null,null,null,null,21726388.32,null,null,null,null,null,null,null,null,null,null,null,null,null,null,null,null,null,null,null,null,null,null,null,null,null,null,null,null,null,null,null,null,null,null,null,null,null,null,null,null,null,null,null,null,null,null,null,null,null,null,null,null,null,null,null,null,null,null,null,null,null,null,null,null,null,null,null,null,null,null,null,null,null,null,null,null,null,null,null,null,null,null,null,null,null,null,null,null,null,null,null,null,null,null,null,null,null,null,null,null,null,null,null,null,null,null,null,null,null,null,null,null,null,null,null,4360,450,57785101.93]
[null,null,null,null,null,"Total",21.768047760000002,null,100.8692106,null,2.2441495599999999,null,null,124.88140791999999,38.505226209999996,1.19728441,1.07428949,84.10460780999999]
[8,80990,"2006-08-17",2007,"HAM-IR-275-21.52 to 28.44",null,null,null,null,null,null,null,null,null,null,null,null,null,null,null,null,null,null,null,null,{"$f":"HYPERLINK(\"http://maps.google.com/maps?f=q&source=s_q&hl=en&geocode=&q=39.300439,+-84.518732+(SHAMIR00275**C  SLM 21.52)+to:39.289574,+-84.393549+(SHAMIR00275**C SLM 28.44)&t=m\",\"Google Map\")","v":"Google Map"}]
[null,null,null,null,null,"CO",1.4487197299999999,null,null,null,null,null,null,1.4487197299999999,1.4487197299999999,null,null,null,null,null,null,null,null,null,null,null,null,null,null,null,null,null,null,null,null,null,null,null,null,null,null,null,null,null,null,null,null,null,null,null,null,null,null,null,null,null,null,null,null,null,null,null,null,null,null,null,1448719.73]
[null,null,null,null,null,"Total",1.4487197299999999,null,null,null,null,null,null,1.4487197299999999,1.4487197299999999]
[8,82278,"2011-05-12",2011,"HAM-IR-75-5.85 to 6.78",null,null,null,null,null,null,null,null,null,null,null,null,null,null,null,null,null,null,null,null,{"$f":"HYPERLINK(\"http://maps.google.com/maps?f=q&source=s_q&hl=en&geocode=&q=39.161987,+-84.519934+(SHAMIR00075**C  SLM 5.85)+to:39.16693,+-84.505921+(SHAMIR00075**C SLM 6.78)&t=m\",\"Google Map\")","v":"Google Map"}]
[null,null,null,null,null,"DD",null,null,1.895397,null,null,null,null,1.895397,1.8090580000000001,8.6338999999999999E-2,null,null,null,null,null,null,null,null,null,null,null,null,null,null,null,null,null,null,null,null,null,null,null,null,null,null,null,null,null,null,null,null,null,null,null,null,null,null,null,null,null,null,null,null,null,null,null,null,null,null,null,null,null,null,null,null,null,null,null,null,null,null,null,null,null,null,null,null,null,null,null,null,null,null,null,null,null,null,null,null,null,null,null,null,null,null,null,null,null,null,null,null,null,null,null,null,null,null,null,null,null,null,null,null,null,null,null,null,null,null,null,null,null,null,null,null,null,null,null,null,null,null,null,null,null,null,null,null,null,null,null,null,null,null,null,null,null,null,null,null,null,null,null,null,null,null,null,null,null,null,null,null,null,null,null,null,null,null,null,null,null,null,null,null,null,null,null,null,null,746826,956510,105722,86339]
[null,null,null,null,null,"RW",null,null,1.32644056,null,null,null,null,1.32644056,0.470225,0.72329420000000011,6.7911929999999995E-2,6.5009430000000007E-2,null,null,null,null,null,null,null,null,null,null,null,null,null,null,null,null,null,null,null,null,null,null,null,null,null,null,null,null,null,null,null,null,null,null,null,null,null,null,null,null,null,null,null,null,null,null,null,null,null,null,null,null,null,null,null,null,null,null,null,null,null,null,null,null,null,null,null,null,null,null,null,null,null,null,null,null,null,null,null,null,null,null,null,null,null,null,null,null,null,null,null,null,null,null,null,null,null,null,null,null,null,null,null,null,null,null,null,null,null,null,null,null,null,null,null,null,null,null,null,null,null,null,null,null,null,null,null,null,null,null,null,null,null,null,null,null,null,null,null,null,null,null,null,null,null,null,null,null,null,null,null,null,null,null,null,null,null,null,null,null,null,null,null,null,null,null,null,null,null,470225,723294.20000000007,67911.929999999993,65009.43]
[null,null,null,null,null,"CO",20.552245759999998,null,32.997952470000001,null,null,null,null,53.550198229999999,null,50.950549219999999,0.1212709,2.47837811,null,null,null,null,null,null,null,null,null,null,null,null,null,null,null,null,null,null,null,null,null,null,null,null,null,null,null,null,null,null,null,null,null,null,null,null,null,null,null,null,null,null,null,null,null,null,null,null,null,null,null,null,20552245.759999998,null,null,null,null,null,null,null,null,null,null,null,null,null,null,null,null,null,null,null,null,null,null,null,null,null,null,null,null,null,null,null,null,null,null,null,null,null,null,null,null,null,null,null,null,null,null,null,null,null,null,null,null,null,null,null,null,null,null,null,null,null,null,null,null,null,null,null,null,null,null,null,null,null,null,null,null,null,null,null,null,null,null,null,null,null,null,null,null,null,null,null,null,null,null,null,null,null,null,null,null,null,null,null,null,null,null,null,null,null,null,null,null,null,null,null,null,null,30398303.460000001,121270.9,2478378.11]
[null,null,null,null,null,"Total",20.552245759999998,null,36.219790029999999,null,null,null,null,56.772035789999997,2.2792829999999999,51.76018242,0.18918283,2.5433875399999999]
[8,82286,"2020-10-01",2021,"HAM-IR-75-6.78 to 7.77",null,null,null,null,null,null,null,null,null,null,null,null,null,null,null,null,null,null,null,null,{"$f":"HYPERLINK(\"http://maps.google.com/maps?f=q&source=s_q&hl=en&geocode=&q=39.16693,+-84.505921+(SHAMIR00075**C  SLM 6.78)+to:39.17351,+-84.491012+(SHAMIR00075**C SLM 7.77)&t=m\",\"Google Map\")","v":"Google Map"}]
[null,null,null,null,null,"RW",null,null,1.90167278,null,null,null,null,1.90167278,null,4.4000000000000003E-3,1.7363450499999999,0.16092773000000002,null,null,null,null,null,null,null,null,null,null,null,null,null,null,null,null,null,null,null,null,null,null,null,null,null,null,null,null,null,null,null,null,null,null,null,null,null,null,null,null,null,null,null,null,null,null,null,null,null,null,null,null,null,null,null,null,null,null,null,null,null,null,null,null,null,null,null,null,null,null,null,null,null,null,null,null,null,null,null,null,null,null,null,null,null,null,null,null,null,null,null,null,null,null,null,null,null,null,null,null,null,null,null,null,null,null,null,null,null,null,null,null,null,null,null,null,null,null,null,null,null,null,null,null,null,null,null,null,null,null,null,null,null,null,null,null,null,null,null,null,null,null,null,null,null,null,null,null,null,null,null,null,null,null,null,null,null,null,null,null,null,null,null,null,null,null,null,null,null,null,4400,1736345.05,160927.73000000001]
[null,null,null,null,null,"CO",16.03,null,21.7,null,null,0.71499999999999997,2.5000000000000001E-2,38.470000000000006,null,null,null,null,null,null,null,null,null,null,38.47,null,null,null,null,null,null,null,null,null,null,null,null,null,null,null,null,null,null,null,null,null,null,null,null,null,null,null,null,null,null,null,null,null,null,null,null,null,null,null,null,null,null,null,null,null,null,null,null,null,null,null,null,null,null,null,16030000,null,null,null,null,null,null,null,null,null,null,null,null,null,null,null,null,null,null,null,null,null,null,null,null,null,null,null,null,null,null,null,null,null,null,null,null,null,null,null,null,null,null,null,null,null,null,null,null,null,null,null,null,null,null,null,null,null,null,null,null,null,null,null,null,null,null,null,null,null,null,null,null,null,null,null,null,null,null,null,null,null,null,null,null,null,null,null,null,null,null,null,null,null,null,null,null,null,null,null,null,null,null,null,null,null,null,null,null,null,null,null,null,null,null,null,null,null,21700000,null,null,null,null,null,null,null,null,null,null,null,null,null,null,null,null,null,null,null,null,null,null,null,null,null,null,null,null,null,null,null,null,null,null,null,null,null,null,null,null,null,null,null,null,null,null,null,null,null,null,null,null,null,null,null,null,null,null,null,null,null,null,null,null,null,null,null,null,null,null,null,null,null,null,null,null,null,null,null,null,null,null,null,null,null,null,null,null,null,null,null,null,null,null,null,null,null,null,null,null,null,null,null,null,null,null,null,null,null,null,null,null,null,null,null,null,null,null,null,null,null,null,null,null,null,null,null,null,null,null,null,null,null,null,null,null,null,null,null,null,null,null,null,null,null,null,null,null,null,null,null,null,null,null,null,null,null,null,null,null,null,null,null,null,null,null,null,null,null,null,null,null,null,null,null,null,715000,null,null,null,null,null,null,null,null,null,null,null,null,null,null,null,null,null,null,null,null,null,null,null,null,null,null,null,null,null,null,null,null,null,null,null,null,null,null,null,null,null,null,null,null,null,null,null,null,null,null,null,null,null,null,null,null,null,null,25000]
[null,null,null,null,null,"Total",16.03,null,23.601672779999998,null,null,0.71499999999999997,2.5000000000000001E-2,40.371672780000004,null,4.4000000000000003E-3,1.7363450499999999,0.16092773000000002,null,null,null,null,null,null,38.47]
[8,82288,"2015-10-01",2016,"HAM-IR-75-12.6 to 14.5",null,null,null,null,null,null,null,null,null,null,null,null,null,null,null,null,null,null,null,null,{"$f":"HYPERLINK(\"http://maps.google.com/maps?f=q&source=s_q&hl=en&geocode=&q=39.232251,+-84.450173+(SHAMIR00075**C  SLM 12.6)+to:39.257456,+-84.442034+(SHAMIR00075**C SLM 14.5)&t=m\",\"Google Map\")","v":"Google Map"}]
[null,null,null,null,null,"PE",null,null,1.405122,null,null,null,null,1.405122,null,1.172207,0.227853,5.0619999999999997E-3,null,null,null,null,null,null,null,null,null,null,null,null,null,null,null,null,null,null,null,null,null,null,null,null,null,null,null,null,null,null,null,null,null,null,null,null,null,null,null,null,null,null,null,null,null,null,null,null,null,null,null,null,null,null,null,null,null,null,null,null,null,null,null,null,null,null,null,null,null,null,null,null,null,null,null,null,null,null,null,null,null,null,null,null,null,null,null,null,null,null,null,null,null,null,null,null,null,null,null,null,null,null,null,null,null,null,null,null,null,null,null,null,null,null,null,null,null,null,null,null,null,null,null,null,null,null,null,null,null,null,null,null,null,null,null,null,null,null,null,null,null,null,null,null,null,null,null,null,null,null,null,null,null,null,null,null,null,null,null,null,null,null,null,null,null,null,null,null,null,null,1172207,227853,5062]
[null,null,null,null,null,"DD",null,null,2.5855028,null,null,null,null,2.5855028,null,2.1535329999999999,3.6138999999999998E-2,0.39583079999999998,null,null,null,null,null,null,null,null,null,null,null,null,null,null,null,null,null,null,null,null,null,null,null,null,null,null,null,null,null,null,null,null,null,null,null,null,null,null,null,null,null,null,null,null,null,null,null,null,null,null,null,null,null,null,null,null,null,null,null,null,null,null,null,null,null,null,null,null,null,null,null,null,null,null,null,null,null,null,null,null,null,null,null,null,null,null,null,null,null,null,null,null,null,null,null,null,null,null,null,null,null,null,null,null,null,null,null,null,null,null,null,null,null,null,null,null,null,null,null,null,null,null,null,null,null,null,null,null,null,null,null,null,null,null,null,null,null,null,null,null,null,null,null,null,null,null,null,null,null,null,null,null,null,null,null,null,null,null,null,null,null,null,null,null,null,null,null,null,null,null,2153533,36139,395830.8]
[null,null,null,null,null,"RW",null,null,9.73,null,null,null,null,9.73,null,0.52976000000000001,7.0558729000000007,2.1443671000000002,null,null,null,null,null,null,null,null,null,null,null,null,null,null,null,null,null,null,null,null,null,null,null,null,null,null,null,null,null,null,null,null,null,null,null,null,null,null,null,null,null,null,null,null,null,null,null,null,null,null,null,null,null,null,null,null,null,null,null,null,null,null,null,null,null,null,null,null,null,null,null,null,null,null,null,null,null,null,null,null,null,null,null,null,null,null,null,null,null,null,null,null,null,null,null,null,null,null,null,null,null,null,null,null,null,null,null,null,null,null,null,null,null,null,null,null,null,null,null,null,null,null,null,null,null,null,null,null,null,null,null,null,null,null,null,null,null,null,null,null,null,null,null,null,null,null,null,null,null,null,null,null,null,null,null,null,null,null,null,null,null,null,null,null,null,null,null,null,null,null,529760,7055872.9000000004,2144367.1]
[null,null,null,null,null,"CO",21.9,null,60,null,null,null,null,81.900000000000006,null,null,null,null,null,null,81.900000000000006,null,null,null,null,null,null,null,null,null,null,null,null,null,null,null,null,null,null,null,null,null,null,null,null,null,null,null,null,null,null,null,null,null,null,null,null,null,null,null,null,null,null,null,null,null,null,null,null,null,null,null,null,null,null,21900000,null,null,null,null,null,null,null,null,null,null,null,null,null,null,null,null,null,null,null,null,null,null,null,null,null,null,null,null,null,null,null,null,null,null,null,null,null,null,null,null,null,null,null,null,null,null,null,null,null,null,null,null,null,null,null,null,null,null,null,null,null,null,null,null,null,null,null,null,null,null,null,null,null,null,null,null,null,null,null,null,null,null,null,null,null,null,null,null,null,null,null,null,null,null,null,null,null,null,null,null,null,null,null,null,null,null,null,null,null,null,null,null,null,null,null,null,null,60000000]
[null,null,null,null,null,"Total",21.9,null,73.720624799999996,null,null,null,null,95.620624800000002,null,3.8554999999999997,7.3198649000000007,2.5452599,null,null,81.900000000000006]
[8,82976,"2013-10-07",2014,"HAM-IR-275-10.57 to 16.12",null,null,null,null,null,null,null,null,null,null,null,null,null,null,null,null,null,null,null,null,{"$f":"HYPERLINK(\"http://maps.google.com/maps?f=q&source=s_q&hl=en&geocode=&q=39.21431,+-84.68202+(SHAMIR00275**C  SLM 10.57)+to:39.257457,+-84.599565+(SHAMIR00275**C SLM 16.12)&t=m\",\"Google Map\")","v":"Google Map"}]
[null,null,null,null,null,"DD",0.5,null,0.12618699999999999,null,null,null,null,0.62618700000000005,null,null,null,0.12618699999999999,0.5,null,null,null,null,null,null,null,null,null,null,null,null,null,null,null,null,null,null,null,null,null,null,null,null,null,null,null,null,null,null,null,null,null,null,null,null,null,null,null,null,null,null,null,null,null,null,null,null,null,null,null,null,null,null,500000,null,null,null,null,null,null,null,null,null,null,null,null,null,null,null,null,null,null,null,null,null,null,null,null,null,null,null,null,null,null,null,null,null,null,null,null,null,null,null,null,null,null,null,null,null,null,null,null,null,null,null,null,null,null,null,null,null,null,null,null,null,null,null,null,null,null,null,null,null,null,null,null,null,null,null,null,null,null,null,null,null,null,null,null,null,null,null,null,null,null,null,null,null,null,null,null,null,null,null,null,null,null,null,null,null,null,null,null,null,null,null,null,null,null,null,null,126187]
[null,null,null,null,null,"CO",30,null,null,null,null,null,null,30,null,null,null,null,30,null,null,null,null,null,null,null,null,null,null,null,null,null,null,null,null,null,null,null,null,null,null,null,null,null,null,null,null,null,null,null,null,null,null,null,null,null,null,null,null,null,null,null,null,null,null,null,null,null,null,null,null,null,null,30000000]
[null,null,null,null,null,"Total",30.5,null,0.12618699999999999,null,null,null,null,30.626187000000002,null,null,null,0.12618699999999999,30.5]
[8,83723,"2020-10-01",2021,"HAM-IR-75-3.85 to 5.85",null,null,null,null,null,null,null,null,null,null,null,null,null,null,null,null,null,null,null,null,{"$f":"HYPERLINK(\"http://maps.google.com/maps?f=q&source=s_q&hl=en&geocode=&q=39.143386,+-84.535756+(SHAMIR00075**C  SLM 3.85)+to:39.161987,+-84.519934+(SHAMIR00075**C SLM 5.85)&t=m\",\"Google Map\")","v":"Google Map"}]
[null,null,null,null,null,"RW",null,null,1.4575499999999999,null,null,null,null,1.4575499999999999,null,null,null,1.05755,0.4,null,null,null,null,null,null,null,null,null,null,null,null,null,null,null,null,null,null,null,null,null,null,null,null,null,null,null,null,null,null,null,null,null,null,null,null,null,null,null,null,null,null,null,null,null,null,null,null,null,null,null,null,null,null,null,null,null,null,null,null,null,null,null,null,null,null,null,null,null,null,null,null,null,null,null,null,null,null,null,null,null,null,null,null,null,null,null,null,null,null,null,null,null,null,null,null,null,null,null,null,null,null,null,null,null,null,null,null,null,null,null,null,null,null,null,null,null,null,null,null,null,null,null,null,null,null,null,null,null,null,null,null,null,null,null,null,null,null,null,null,null,null,null,null,null,null,null,null,null,null,null,null,null,null,null,null,null,null,null,null,null,null,null,null,null,null,null,null,null,null,null,1057550,400000]
[null,null,null,null,null,"CO",30.143999999999998,null,96.295901999999998,null,null,null,34.599451999999999,161.039354,null,null,null,null,null,null,null,null,null,null,161.039354,null,null,null,null,null,null,null,null,null,null,null,null,null,null,null,null,null,null,null,null,null,null,null,null,null,null,null,null,null,null,null,null,null,null,null,null,null,null,null,null,null,null,null,null,null,null,null,null,null,null,null,null,null,null,null,30144000,null,null,null,null,null,null,null,null,null,null,null,null,null,null,null,null,null,null,null,null,null,null,null,null,null,null,null,null,null,null,null,null,null,null,null,null,null,null,null,null,null,null,null,null,null,null,null,null,null,null,null,null,null,null,null,null,null,null,null,null,null,null,null,null,null,null,null,null,null,null,null,null,null,null,null,null,null,null,null,null,null,null,null,null,null,null,null,null,null,null,null,null,null,null,null,null,null,null,null,null,null,null,null,null,null,null,null,null,null,null,null,null,null,null,null,null,null,96295902,null,null,null,null,null,null,null,null,null,null,null,null,null,null,null,null,null,null,null,null,null,null,null,null,null,null,null,null,null,null,null,null,null,null,null,null,null,null,null,null,null,null,null,null,null,null,null,null,null,null,null,null,null,null,null,null,null,null,null,null,null,null,null,null,null,null,null,null,null,null,null,null,null,null,null,null,null,null,null,null,null,null,null,null,null,null,null,null,null,null,null,null,null,null,null,null,null,null,null,null,null,null,null,null,null,null,null,null,null,null,null,null,null,null,null,null,null,null,null,null,null,null,null,null,null,null,null,null,null,null,null,null,null,null,null,null,null,null,null,null,null,null,null,null,null,null,null,null,null,null,null,null,null,null,null,null,null,null,null,null,null,null,null,null,null,null,null,null,null,null,null,null,null,null,null,null,null,null,null,null,null,null,null,null,null,null,null,null,null,null,null,null,null,null,null,null,null,null,null,null,null,null,null,null,null,null,null,null,null,null,null,null,null,null,null,null,null,null,null,null,null,null,null,null,null,null,null,null,null,null,null,null,null,null,null,34599452]
[null,null,null,null,null,"Total",30.143999999999998,null,97.753451999999996,null,null,null,34.599451999999999,162.496904,null,null,null,1.05755,0.4,null,null,null,null,null,161.039354]
[8,null,null,null,null,"G. Total",356.56692415999999,null,535.52520663999996,null,2.2471485599999999,0.71499999999999997,34.624451999999998,929.67873136000014,447.57307285000007,59.692247620000003,17.423012040000003,92.681044849999992,30.9,null,81.900000000000006,null,null,null,199.509354]
[10,21904,"2009-04-27",2009,"ATH-US-33-15.86 to 17.99",null,null,null,null,null,null,null,null,null,null,null,null,null,null,null,null,null,null,null,null,{"$f":"HYPERLINK(\"http://maps.google.com/maps?f=q&source=s_q&hl=en&geocode=&q=39.330718,+-82.084313+(SATHUS00033**C  SLM 15.86)+to:39.307376,+-82.106927+(SATHUS00033**C SLM 17.99)&t=m\",\"Google Map\")","v":"Google Map"}]
[null,null,null,null,null,"CO",6.1,null,7.3662649399999998,null,null,null,null,13.466264939999999,13.46626494,null,null,null,null,null,null,null,null,null,null,null,null,null,null,null,null,null,null,null,null,null,null,null,null,null,null,null,null,null,null,null,null,null,null,null,null,null,null,null,null,null,null,null,null,null,null,null,null,null,null,null,null,null,6100000,null,null,null,null,null,null,null,null,null,null,null,null,null,null,null,null,null,null,null,null,null,null,null,null,null,null,null,null,null,null,null,null,null,null,null,null,null,null,null,null,null,null,null,null,null,null,null,null,null,null,null,null,null,null,null,null,null,null,null,null,null,null,null,null,null,null,null,null,null,null,null,null,null,null,null,null,null,null,null,null,null,null,null,null,null,null,null,null,null,null,null,null,null,null,null,null,null,null,null,null,null,null,null,null,null,null,null,null,null,null,null,null,null,null,null,null,null,7366264.9399999995]
[null,null,null,null,null,"Total",6.1,null,7.3662649399999998,null,null,null,null,13.466264939999999,13.46626494]
[10,76160,"2005-02-10",2005,"WAS-IR-77-6.63 to 17.64",null,null,null,null,null,null,null,null,null,null,null,null,null,null,null,null,null,null,null,null,{"$f":"HYPERLINK(\"http://maps.google.com/maps?f=q&source=s_q&hl=en&geocode=&q=39.493567,+-81.44669+(SWASIR00077**C  SLM 6.63)+to:39.645854,+-81.465178+(SWASIR00077**C SLM 17.64)&t=m\",\"Google Map\")","v":"Google Map"}]
[null,null,null,null,null,"DD",0.89964699999999997,null,null,null,null,null,null,0.89964699999999997,0.89964699999999997,null,null,null,null,null,null,null,null,null,null,null,null,null,null,null,null,null,null,null,null,null,null,null,null,null,null,null,null,null,null,null,null,null,null,null,null,null,null,null,null,null,null,null,null,null,null,null,null,177347,722300]
[null,null,null,null,null,"CO",19.257574000000002,null,null,null,null,null,null,19.257574000000002,19.257574000000002,null,null,null,null,null,null,null,null,null,null,null,null,null,null,null,null,null,null,null,null,null,null,null,null,null,null,null,null,null,null,null,null,null,null,null,null,null,null,null,null,null,null,null,null,null,null,null,null,null,19257574]
[null,null,null,null,null,"Total",20.157221000000003,null,null,null,null,null,null,20.157221000000003,20.157221000000003]
[10,null,null,null,null,"G. Total",26.257221000000001,null,7.3662649399999998,null,null,null,null,33.623485940000002,33.623485940000002]
[12,22220,"2013-10-21",2014,"GEA-US-422-3.19 to 9.38",null,null,null,null,null,null,null,null,null,null,null,null,null,null,null,null,null,null,null,null,{"$f":"HYPERLINK(\"http://maps.google.com/maps?f=q&source=s_q&hl=en&geocode=&q=41.386507,+-81.331+(SGEAUS00422**C  SLM 3.19)+to:41.383767,+-81.212904+(SGEAUS00422**C SLM 9.38)&t=m\",\"Google Map\")","v":"Google Map"}]
[null,null,null,null,null,"DD",9.2674510000000015E-2,null,null,null,null,null,null,9.2674510000000015E-2,6.3307509999999997E-2,2.4627E-2,null,4.7400000000000003E-3,null,null,null,null,null,null,null,null,null,null,null,null,null,null,null,null,null,null,null,null,null,null,null,null,null,null,null,null,null,null,null,null,null,null,null,null,null,null,null,null,null,null,null,null,null,null,null,null,null,null,null,63307.51,24627,null,4740]
[null,null,null,null,null,"CO",20,null,null,null,null,null,null,20,null,null,null,null,20,null,null,null,null,null,null,null,null,null,null,null,null,null,null,null,null,null,null,null,null,null,null,null,null,null,null,null,null,null,null,null,null,null,null,null,null,null,null,null,null,null,null,null,null,null,null,null,null,null,null,null,null,null,null,20000000]
[null,null,null,null,null,"Total",20.092674509999998,null,null,null,null,null,null,20.092674509999998,6.3307509999999997E-2,2.4627E-2,null,4.7400000000000003E-3,20]
[12,75477,"2010-03-18",2010,"LAK-IR-90-21.42 to 29.21",null,null,null,null,null,null,null,null,null,null,null,null,null,null,null,null,null,null,null,null,{"$f":"HYPERLINK(\"http://maps.google.com/maps?f=q&source=s_q&hl=en&geocode=&q=41.71973,+-81.137337+(SLAKIR00090**C  SLM 21.42)+to:41.763698,+-81.002794+(SLAKIR00090**C SLM 29.21)&t=m\",\"Google Map\")","v":"Google Map"}]
[null,null,null,null,null,"DD",0.14620422999999999,null,null,null,null,null,null,0.14620422999999999,0.13956922999999999,null,6.6350000000000003E-3,null,null,null,null,null,null,null,null,null,null,null,null,null,null,null,null,null,null,null,null,null,null,null,null,null,null,null,null,null,null,null,null,null,null,null,null,null,null,null,null,null,null,null,null,null,null,null,null,null,117976.29,8057.39,13535.55,null,null,6635]
[null,null,null,null,null,"CO",35.078403589999994,null,null,null,null,null,null,35.078403589999994,31.736444219999999,0.23714673999999999,1.96888569,1.1359269400000001,null,null,null,null,null,null,null,null,null,null,null,null,null,null,null,null,null,null,null,null,null,null,null,null,null,null,null,null,null,null,null,null,null,null,null,null,null,null,null,null,null,null,null,null,null,null,null,null,null,null,null,31736444.219999999,237146.74,1968885.69,1135926.94]
[null,null,null,null,null,"Total",35.224607819999996,null,null,null,null,null,null,35.224607819999996,31.876013449999999,0.23714673999999999,1.97552069,1.1359269400000001]
[12,75479,"2011-10-17",2012,"LAK-IR-90-13.1 to 21.42",null,null,null,null,null,null,null,null,null,null,null,null,null,null,null,null,null,null,null,null,{"$f":"HYPERLINK(\"http://maps.google.com/maps?f=q&source=s_q&hl=en&geocode=&q=41.658493,+-81.273542+(SLAKIR00090**C  SLM 13.1)+to:41.71973,+-81.137337+(SLAKIR00090**C SLM 21.42)&t=m\",\"Google Map\")","v":"Google Map"}]
[null,null,null,null,null,"PE",4.3200000000000001E-3,null,null,null,null,null,null,4.3200000000000001E-3,null,null,4.3200000000000001E-3,null,null,null,null,null,null,null,null,null,null,null,null,null,null,null,null,null,null,null,null,null,null,null,null,null,null,null,null,null,null,null,null,null,null,null,null,null,null,null,null,null,null,null,null,null,null,null,null,null,null,null,null,null,null,4320]
[null,null,null,null,null,"DD",3.4528469199999998,null,null,null,null,null,null,3.4528469199999998,3.32298392,0.108816,2.1047E-2,null,null,null,null,null,null,null,null,null,null,null,null,null,null,null,null,null,null,null,null,null,null,null,null,null,null,null,null,null,null,null,null,null,null,null,null,null,null,null,null,null,null,null,null,null,null,null,null,572745,null,2573747.92,176491,null,108816,21047]
[null,null,null,null,null,"CO",59.988516590000003,null,null,null,null,null,null,59.988516590000003,null,null,59.988516590000003,null,null,null,null,null,null,null,null,null,null,null,null,null,null,null,null,null,null,null,null,null,null,null,null,null,null,null,null,null,null,null,null,null,null,null,null,null,null,null,null,null,null,null,null,null,null,null,null,null,null,null,null,null,null,59988516.590000004]
[null,null,null,null,null,"Total",63.445683510000002,null,null,null,null,null,null,63.445683510000002,3.32298392,0.108816,60.013883590000006]
[12,79545,"2010-05-27",2010,"LAK-SR-2-7.6 to 13.4",null,null,null,null,null,null,null,null,null,null,null,null,null,null,null,null,null,null,null,null,{"$f":"HYPERLINK(\"http://maps.google.com/maps?f=q&source=s_q&hl=en&geocode=&q=41.671452,+-81.369714+(SLAKSR00002**C  SLM 7.6)+to:41.721222,+-81.285828+(SLAKSR00002**C SLM 13.4)&t=m\",\"Google Map\")","v":"Google Map"}]
[null,null,null,null,null,"DD",null,null,2.226534,null,null,null,null,2.226534,2.2171750000000001,9.3589999999999993E-3,null,null,null,null,null,null,null,null,null,null,null,null,null,null,null,null,null,null,null,null,null,null,null,null,null,null,null,null,null,null,null,null,null,null,null,null,null,null,null,null,null,null,null,null,null,null,null,null,null,null,null,null,null,null,null,null,null,null,null,null,null,null,null,null,null,null,null,null,null,null,null,null,null,null,null,null,null,null,null,null,null,null,null,null,null,null,null,null,null,null,null,null,null,null,null,null,null,null,null,null,null,null,null,null,null,null,null,null,null,null,null,null,null,null,null,null,null,null,null,null,null,null,null,null,null,null,null,null,null,null,null,null,null,null,null,null,null,null,null,null,null,null,null,null,null,null,null,null,null,null,null,null,null,null,null,null,null,null,null,null,null,null,null,null,null,null,null,null,null,1999956,101919,115300,9359]
[null,null,null,null,null,"RW",null,null,1.0001409999999999,null,null,null,null,1.0001409999999999,0.54064100000000004,0.44450000000000001,1.4999999999999999E-2,null,null,null,null,null,null,null,null,null,null,null,null,null,null,null,null,null,null,null,null,null,null,null,null,null,null,null,null,null,null,null,null,null,null,null,null,null,null,null,null,null,null,null,null,null,null,null,null,null,null,null,null,null,null,null,null,null,null,null,null,null,null,null,null,null,null,null,null,null,null,null,null,null,null,null,null,null,null,null,null,null,null,null,null,null,null,null,null,null,null,null,null,null,null,null,null,null,null,null,null,null,null,null,null,null,null,null,null,null,null,null,null,null,null,null,null,null,null,null,null,null,null,null,null,null,null,null,null,null,null,null,null,null,null,null,null,null,null,null,null,null,null,null,null,null,null,null,null,null,null,null,null,null,null,null,null,null,null,null,null,null,null,null,null,null,null,null,null,null,535581,5060,444500,15000]
[null,null,null,null,null,"CO",16.838590870000001,null,43.890264799999997,null,null,null,null,60.728855670000002,60.653855669999999,0.05,null,2.5000000000000001E-2,null,null,null,null,null,null,null,null,null,null,null,null,null,null,null,null,null,null,null,null,null,null,null,null,null,null,null,null,null,null,null,null,null,null,null,null,null,null,null,null,null,null,null,null,null,null,null,null,null,null,null,16838590.870000001,null,null,null,null,null,null,null,null,null,null,null,null,null,null,null,null,null,null,null,null,null,null,null,null,null,null,null,null,null,null,null,null,null,null,null,null,null,null,null,null,null,null,null,null,null,null,null,null,null,null,null,null,null,null,null,null,null,null,null,null,null,null,null,null,null,null,null,null,null,null,null,null,null,null,null,null,null,null,null,null,null,null,null,null,null,null,null,null,null,null,null,null,null,null,null,null,null,null,null,null,null,null,null,null,null,null,null,null,null,null,null,null,null,null,null,null,null,43815264.799999997,50000,null,25000]
[null,null,null,null,null,"Total",16.838590870000001,null,47.116939799999997,null,null,null,null,63.955530670000002,63.411671669999997,0.50385900000000006,1.4999999999999999E-2,2.5000000000000001E-2]
[12,80418,"2015-02-15",2015,"CUY-IR-271-0 to 5.94",null,null,null,null,null,null,null,null,null,null,null,null,null,null,null,null,null,null,null,null,{"$f":"HYPERLINK(\"http://maps.google.com/maps?f=q&source=s_q&hl=en&geocode=&q=41.350158,+-81.511507+(SCUYIR00271**C  SLM 0)+to:41.43382,+-81.501565+(SCUYIR00271**C SLM 5.94)&t=m\",\"Google Map\")","v":"Google Map"}]
[null,null,null,null,null,"PE",null,null,1.0121990000000001,null,null,null,null,1.0121990000000001,null,0.90845399999999998,1.2199E-2,9.1546000000000002E-2,null,null,null,null,null,null,null,null,null,null,null,null,null,null,null,null,null,null,null,null,null,null,null,null,null,null,null,null,null,null,null,null,null,null,null,null,null,null,null,null,null,null,null,null,null,null,null,null,null,null,null,null,null,null,null,null,null,null,null,null,null,null,null,null,null,null,null,null,null,null,null,null,null,null,null,null,null,null,null,null,null,null,null,null,null,null,null,null,null,null,null,null,null,null,null,null,null,null,null,null,null,null,null,null,null,null,null,null,null,null,null,null,null,null,null,null,null,null,null,null,null,null,null,null,null,null,null,null,null,null,null,null,null,null,null,null,null,null,null,null,null,null,null,null,null,null,null,null,null,null,null,null,null,null,null,null,null,null,null,null,null,null,null,null,null,null,null,null,null,null,908454,12199,91546]
[null,null,null,null,null,"DD",4.8,null,0.72348299999999999,null,null,null,null,5.5234829999999997,null,null,null,5.5234829999999997,null,null,null,null,null,null,null,null,null,null,null,null,null,null,null,null,null,null,null,null,null,null,null,null,null,null,null,null,null,null,null,null,null,null,null,null,null,null,null,null,null,null,null,null,null,null,null,null,null,null,null,null,null,null,4800000,null,null,null,null,null,null,null,null,null,null,null,null,null,null,null,null,null,null,null,null,null,null,null,null,null,null,null,null,null,null,null,null,null,null,null,null,null,null,null,null,null,null,null,null,null,null,null,null,null,null,null,null,null,null,null,null,null,null,null,null,null,null,null,null,null,null,null,null,null,null,null,null,null,null,null,null,null,null,null,null,null,null,null,null,null,null,null,null,null,null,null,null,null,null,null,null,null,null,null,null,null,null,null,null,null,null,null,null,null,null,null,null,null,null,null,null,null,723483]
[null,null,null,null,null,"CO",125.7,null,null,null,null,null,null,125.7,null,null,null,null,null,125.7,null,null,null,null,null,null,null,null,null,null,null,null,null,null,null,null,null,null,null,null,null,null,null,null,null,null,null,null,null,null,null,null,null,null,null,null,null,null,null,null,null,null,null,null,null,null,null,null,null,null,null,null,null,null,125700000]
[null,null,null,null,null,"Total",130.5,null,1.7356820000000002,null,null,null,null,132.235682,null,0.90845399999999998,1.2199E-2,5.6150289999999998,null,125.7]
[12,92652,"2012-06-01",2012,"LAK-SR-2-5.42 to 7.76",null,null,null,null,null,null,null,null,null,null,null,null,null,null,null,null,null,null,null,null,{"$f":"HYPERLINK(\"http://maps.google.com/maps?f=q&source=s_q&hl=en&geocode=&q=41.655121,+-81.403903+(SLAKSR00002**C  SLM 5.42)+to:41.673136,+-81.367566+(SLAKSR00002**C SLM 7.76)&t=m\",\"Google Map\")","v":"Google Map"}]
[null,null,null,null,null,"CO",1.2110768200000002,null,null,null,null,null,null,1.2110768200000002,null,null,1.2110768200000002,null,null,null,null,null,null,null,null,null,null,null,null,null,null,null,null,null,null,null,null,null,null,null,null,null,null,null,null,null,null,null,null,null,null,null,null,null,null,null,null,null,null,null,null,null,null,null,null,null,null,null,null,null,null,1211076.82]
[null,null,null,null,null,"Total",1.2110768200000002,null,null,null,null,null,null,1.2110768200000002,null,null,1.2110768200000002]
[12,null,null,null,null,"G. Total",267.31263353000003,null,48.852621800000001,null,null,null,null,316.16525533000004,98.673976549999992,1.7829027399999999,63.227680100000008,6.7806959399999993,20,125.7]